Cogmind - Beta 12 X1 @@@ ROGUE MODE // 2022.08.10 @ 21:07:22 Player: Momo Result: Destroyed by Y-72 Warden with Railgun Performance ------------- Evolutions (9) 4500 Regions Visited (31) 6200 Robots Destroyed (356) 1780 Value Destroyed (25765) 25765 Prototype IDs (41) 820 Alien Tech Used (10) 2000 Bonus (22947) 22947 TOTAL SCORE: 64012 Bonus ------- High Alert Combat Kills 1789 Follower Combat Kills 8447 Entered Garrisons 2000 Used RIF Installer 5500 Built Enhanced Grunts 300 A7 Reached Mainframe 300 Met R17 at Cetus 500 Used Core Reset Matrix 3000 Met R17 at Research 2000 Met Sigix 2000 Friendly Fire -2889 Cogmind --------- Core Integrity 0/1600 Matter 55/300 Energy 339/340 System Corruption 0% Temperature Cool (11) Movement Flying (39) Location -1/Access Parts ------- > --- POWER (1) -------- Particle Reactor > --- PROPULSION (3) --- Q-thruster Impulse Thruster Array > --- UTILITY (20) ----- Machine Analyzer Machine Analyzer Enhanced Optical Array Advanced Targeting Computer Improved Melee Analysis Suite Advanced Target Analyzer Advanced Target Analyzer Core Analyzer Experimental Core Analyzer Graphene Brace Hacking Suite Hacking Suite System Shield Authchip [R/NC] Authchip [R/Combat] Improved System Guard > --- WEAPON (2) ------- Advanced Datajack Lance > --- INVENTORY (7) ---- Energy Filter Subatomic Replicator Spacefold Activator Heavy Assault Cannon Advanced Remote Datajack Force Lance Peak State ------------ > --- POWER ------------ Light Quantum Reactor > --- PROPULSION ------- Biometal Medium Treads Armored Heavy Treads > --- UTILITY ---------- Advanced Thermal Generator Advanced Heat Sink Medium Storage Unit Enhanced Optical Array Advanced Targeting Computer Advanced Target Analyzer Advanced Target Analyzer Experimental Core Analyzer Advanced Phase Shifter Improved Cloaking Device Graphene Brace Advanced Thermal Shield Antimissile System Hacking Suite Advanced Hacking Suite Relay Coupler [NC] Relay Coupler [C] Relay Coupler [C] Relay Coupler [Hunter] Spacefold Activator > --- WEAPON ----------- Nova Cannon Advanced Remote Datajack > --- INVENTORY -------- Particle Reactor Biometal Heavy Treads Improved Matter Compressor Relay Coupler [C] Core Reset Matrix Subatomic Replicator Heavy Assault Cannon Advanced Remote Datajack Advanced Remote Datajack Lance [Rating: 186] Favorites ----------- Power Particle Reactor Engine Improved Deuterium Engine Power Core Light Nuclear Core Reactor Particle Reactor Propulsion Improved Heavy Treads Treads Improved Heavy Treads Leg Myomer Leg Wheel Armored Wheel Hover Unit Improved Antigrav System Flight Unit Impulse Thruster Utility Relay Coupler [Hunter] Device Experimental Force Field Storage High-capacity Storage Unit Processor Advanced Target Analyzer Hackware Relay Coupler [Hunter] Protection Centrium Medium Armor Plating Artifact Spacefold Activator Weapon Compact Linear Accelerator Energy Gun Advanced Variable Charge Gun Energy Cannon Ion Burst Cannon Ballistic Gun Advanced KE Penetrator Ballistic Cannon Compact Linear Accelerator Launcher Heavy Rocket Launcher Special Weapon Improved Remote Datajack Impact Weapon Heavy Flail Slashing Weapon Katana Piercing Weapon Lance Special Melee Weapon Advanced Datajack Build | -11 -10 -10 -9 -9 -9 -8 -8 -7 -7 -6 -6 -6 -6 -6 -6 -5 -5 -5 -5 -4 -4 -3 -3 -3 -3 -2 -2 -2 -1 -1 -1 ------- Run | Scr Mat Min Mat Sto Gar Mat Gar Fac Gar Fac Ext Cet Arc Hub Gar Fac Gar Fac Gar Fac Gar Res Qua Sec Gar Res Gar Res Acc Gar Acc Slots Evolved 18 | . . . 2 . . 2 . 2 . 2 . . . . . 2 . . . 2 . 2 . . . 2 . . 2 . . Power . | . . . . . . . . . . . . . . . . . . . . . . . . . . . . . . . . Propulsion . | . . . . . . . . . . . . . . . . . . . . . . . . . . . . . . . . Utility 18 | . . . 2 . . 2 . 2 . 2 . . . . . 2 . . . 2 . 2 . . . 2 . . 2 . . Weapon . | . . . . . . . . . . . . . . . . . . . . . . . . . . . . . . . . Parts Attached 716 | 5 5 3 6 19 15 7 11 8 27 53 16 5 2 6 30 16 26 31 28 11 29 33 25 29 42 38 52 51 4 61 22 Power 48 | 1 . 1 2 4 1 . . . 2 4 1 1 1 . . 3 . 1 . 3 1 2 1 1 2 3 4 6 . 2 1 Engine 11 | 1 . 1 2 4 1 . . . . . . . . . . . . 1 . . . . . . . 1 . . . . . Core 4 | . . . . . . . . . . 1 . . . . . 1 . . . 2 . . . . . . . . . . . Reactor 33 | . . . . . . . . . 2 3 1 1 1 . . 2 . . . 1 1 2 1 1 2 2 4 6 . 2 1 Propulsion 80 | 2 2 . . 1 3 1 1 . 1 4 . . . . 2 . . 3 . . 1 2 1 9 8 9 9 5 2 10 4 Treads 37 | . . . . . 1 1 1 . 1 4 . . . . 2 . . 3 . . 1 2 1 9 1 4 . 3 2 1 . Leg 22 | . . . . . . . . . . . . . . . . . . . . . . . . . 7 1 7 2 . 5 . Wheel 7 | 2 2 . . 1 2 . . . . . . . . . . . . . . . . . . . . . . . . . . Hover 9 | . . . . . . . . . . . . . . . . . . . . . . . . . . 2 2 . . 3 2 Flight 5 | . . . . . . . . . . . . . . . . . . . . . . . . . . 2 . . . 1 2 Utility 359 | 1 2 . 2 7 6 4 6 4 16 27 6 2 . 4 16 5 19 16 17 8 24 15 10 12 17 14 28 29 2 27 13 Device 116 | . . . 2 1 2 . 1 . 3 9 3 . . 2 4 2 4 6 3 3 5 6 4 4 3 8 13 19 . 5 4 Storage 23 | 1 1 . . . . . . . . . . 1 . . . . 1 1 . . 3 3 1 . . 1 4 4 1 . 1 Processor 37 | . 1 . . 2 1 . 1 . 1 2 2 . . 1 . . 1 5 1 1 1 4 1 . . 1 1 4 . 1 5 Hackware 135 | . . . . 1 . 4 4 3 11 10 1 . . 1 12 2 12 2 13 2 13 1 1 2 9 1 6 1 1 19 3 Protection 38 | . . . . 3 3 . . 1 1 6 . 1 . . . 1 1 2 . 2 2 1 2 1 5 1 2 1 . 2 . Artifact 10 | . . . . . . . . . . . . . . . . . . . . . . . 1 5 . 2 2 . . . . Weapon 229 | 1 1 2 2 7 5 2 4 4 8 18 9 2 1 2 12 8 7 11 11 . 3 14 13 7 15 12 11 11 . 22 4 Energy Gun 15 | . . . 2 2 . 1 . . . . . 1 . . 1 . 1 2 . . . 1 . . 1 . 1 1 . 1 . Energy Cannon 21 | . . . . 2 2 . 1 . 2 4 . . . . . . . . . . . 2 3 . 1 . . 4 . . . Ballistic Gun 56 | 1 1 2 . 3 . 1 . 1 4 4 2 1 1 1 6 3 3 1 . . . 1 1 . 7 4 2 . . 6 . Ballistic Cannon 41 | . . . . . . . . . . . 1 . . . . . . 1 5 . 2 6 3 2 1 4 5 3 . 6 2 Launcher 16 | . . . . . 2 . 1 . 1 4 2 . . 1 3 . 1 . . . . . . . . . . 1 . . . Special Weapon 68 | . . . . . 1 . 1 1 1 6 1 . . . 2 5 2 5 6 . 1 4 6 5 5 3 3 1 . 9 . Impact Weapon 2 | . . . . . . . . . . . 1 . . . . . . . . . . . . . . 1 . . . . . Slashing Weapon 8 | . . . . . . . 1 2 . . 2 . . . . . . 2 . . . . . . . . . 1 . . . Piercing Weapon 1 | . . . . . . . . . . . . . . . . . . . . . . . . . . . . . . . 1 Special Melee Weapon 1 | . . . . . . . . . . . . . . . . . . . . . . . . . . . . . . . 1 Unidentified Prototypes 39 | . . . . 4 2 . . . 1 2 . 4 . . 1 . . 7 . 1 . 3 4 5 . 2 . 2 . 1 . Corrupted Parts 6 | . . . . . . . . . . . . . . . 1 . . . . . . . . . 3 . 2 . . . . System Corruption 52 | . . . . . . . . . . . . . . . 9 . . . . . . . . . 29 . 14 . . . . Parts Lost 178 | . . 3 3 5 3 . 3 . 6 16 6 . . 1 . 3 5 2 . . 7 . 6 3 10 30 15 9 . 40 2 Power 18 | . . 1 1 1 . . . . 1 2 . . . . . 1 . . . . . . 1 . 2 3 2 1 . 2 . Propulsion 29 | . . . . 1 2 . . . . 1 . . . . . . . . . . . . . 1 3 7 2 1 . 11 . Utility 99 | . . . 1 1 1 . 3 . 4 9 5 . . 1 . . 5 1 . . 6 . 4 2 5 16 7 7 . 19 2 Weapon 32 | . . 2 1 2 . . . . 1 4 1 . . . . 2 . 1 . . 1 . 1 . . 4 4 . . 8 . Highest Loss Streak 17 | . . 3 2 3 2 . 2 . 4 6 5 . . 1 . 3 5 1 . . 6 . 4 1 3 13 5 3 . 17 1 To Critical Strikes 1 | . . . . . . . . . . . . . . . . 1 . . . . . . . . . . . . . . . Average Slot Usage (%) 86 | . 84 97 80 95 88 83 88 84 87 88 85 92 92 86 90 91 88 89 93 92 82 86 90 83 93 73 62 88 91 68 72 Engine 1 | . 14 12 10 10 11 9 9 7 . . . . . . . . . . 5 1 . . . . . . . . . . . Reactor 3 | . . . . . . . . . 6 5 5 6 6 6 6 3 5 4 . . 4 3 3 4 3 2 3 3 3 1 . Treads 4 | . . . . . 8 9 9 7 6 5 6 6 6 6 6 5 5 5 5 5 4 4 3 4 3 1 1 3 6 2 . Leg 1 | . . . . . . . . . . . . . . . . . . . . . . . . . 7 6 7 6 . 1 . Wheel 1 | . 28 28 22 21 3 . . . . . . . . . . . . . . . . . . . . . . . . . . Device 6 | . . . 9 7 . . 3 . 2 5 19 20 20 18 5 8 7 2 4 3 8 5 3 . 1 7 4 21 23 9 3 Storage 6 | . 14 14 11 11 11 9 9 7 7 6 6 6 6 6 6 5 5 6 5 5 4 6 8 4 4 4 7 4 3 1 . Processor 13 | . 2 14 6 5 17 16 8 7 8 6 . 13 13 13 11 5 5 6 12 10 14 22 27 24 22 14 9 18 19 19 28 Hackware 28 | . . . . 10 4 13 25 32 35 39 23 20 20 19 34 41 39 44 41 45 27 28 26 30 32 25 18 17 22 25 30 Protection 4 | . . . . 9 10 9 5 5 2 5 9 5 6 6 6 5 5 5 3 5 4 3 3 1 5 1 1 . . . . Energy Cannon 1 | . . . . 2 8 1 6 . . 3 . . . . . . . . . . . . 1 . . . . 2 3 . . Ballistic Gun 2 | . 24 27 17 5 5 2 3 . 4 1 2 5 11 8 6 4 2 . . . . . . . 3 1 . . . . . Ballistic Cannon 1 | . . . . . . . . . . . . . . . . . . . 3 5 5 3 2 3 1 1 2 1 . . . Special Weapon 3 | . . . . . 3 9 2 7 6 3 4 6 1 . 4 4 3 4 6 5 4 4 3 2 2 2 . 2 3 1 . Naked Turns . | . . . . . . . . . . . . . . . . . . . . . . . . . . . . . . . . Heaviest Build 104 | 12 49 49 53 63 68 68 73 64 73 83 83 79 80 80 80 82 80 104 78 79 78 81 79 91 94 74 61 66 63 67 23 Greatest Support 114 | 26 26 24 24 24 87 75 75 75 75 87 87 75 75 75 80 80 80 80 80 80 80 80 80 114 105 91 85 95 95 95 24 Greatest Overweight (x) 25 | . 2 2 2 4 5 . . . . 1 1 1 1 1 1 1 . 1 . . 25 1 . 1 2 6 14 1 1 6 . Average Overweight (x) . | . . 1 1 2 . . . . . . . . . . . . . . . . . . . . . . . . . . . Largest Inventory Capacity 27 | 8 20 20 20 20 20 20 20 20 20 20 20 20 20 20 20 20 20 20 20 20 20 15 15 17 17 17 17 12 27 12 22 Average Capacity 16 | 7 8 20 20 20 20 20 20 20 20 20 20 20 20 20 20 20 20 20 20 20 5 8 15 15 17 17 9 7 12 8 7 Most Carried 20 | . 9 13 16 20 20 20 20 20 20 20 20 20 20 20 20 20 20 20 20 19 20 15 15 17 17 17 17 10 12 12 7 Average Carried 15 | . 3 11 12 18 19 17 19 19 19 17 18 19 19 19 19 19 19 19 19 18 5 6 14 15 16 16 8 6 10 7 6 Final Capacity 20 | 8 20 20 20 20 20 20 20 20 20 20 20 20 20 20 20 20 20 20 20 20 5 15 15 17 17 17 7 12 12 7 7 Final Carried 20 | . 9 11 16 20 20 16 20 20 20 19 20 20 19 20 20 20 20 20 20 19 5 14 15 14 17 14 7 10 12 6 7 Class Distribution -------------------- 69% | Botlord-Mutant 9% | Bothacker-Mutant 8% | Mutant 5% | Hacker-Mutant 5% | Scavenger-Mutant Dominant Class ---------------- Mutant | -10/Materials Mutant | -10/Mines Mutant | -9/Materials Mutant | -9/Storage Bothacker-Mutant | -9/Garrison Bothacker-Mutant | -8/Materials Bothacker-Mutant | -8/Garrison Botlord-Mutant | -7/Factory Botlord-Mutant | -7/Garrison Botlord-Mutant | -6/Factory Bothacker-Mutant | -6/Extension Commander-Mutant | -6/Cetus Bothacker-Mutant | -6/Archives Bothacker-Mutant | -6/Hub_04(d) Botlord-Mutant | -6/Garrison Botlord-Mutant | -5/Factory Botlord-Mutant | -5/Garrison Botlord-Mutant | -5/Factory Botlord-Mutant | -5/Garrison Botlord-Mutant | -4/Factory Botlord-Mutant | -4/Garrison Botlord-Mutant | -3/Research Botlord-Mutant | -3/Quarantine Botlord-Mutant | -3/Section 7 Botlord-Mutant | -3/Garrison Botlord-Mutant | -2/Research Scavenger-Mutant | -2/Garrison Botlord-Mutant | -2/Research Botlord-Mutant | -1/Access Botlord-Mutant | -1/Garrison Botlord-Mutant | -1/Access Resources | -11 -10 -10 -9 -9 -9 -8 -8 -7 -7 -6 -6 -6 -6 -6 -6 -5 -5 -5 -5 -4 -4 -3 -3 -3 -3 -2 -2 -2 -1 -1 -1 ----------- Run | Scr Mat Min Mat Sto Gar Mat Gar Fac Gar Fac Ext Cet Arc Hub Gar Fac Gar Fac Gar Fac Gar Res Qua Sec Gar Res Gar Res Acc Gar Acc Matter Collected 20393 | 250 210 124 103 208 461 264 250 15 739 1215 751 204 69 185 943 371 751 637 1139 648 946 647 637 1727 1827 558 2081 1266 . 1071 96 Remotely 20 | . . . . . . . . . . . . . . . . . . 20 . . . . . . . . . . . . . Salvage Created 18105 | . 349 129 169 713 1456 153 530 43 676 2391 360 207 33 452 1334 384 644 380 522 381 367 288 619 514 1090 644 909 1898 . 446 24 Parts 803 | . 16 14 16 40 63 3 21 3 23 88 10 5 2 23 61 21 24 27 19 11 16 8 45 19 48 23 27 104 . 18 5 Haulers Intercepted 3 | . . . 1 . . . . . . 1 . . . . . . . . . . . . . . . . . 1 . . . Recyclers Shooed 14 | . 1 . . 2 . . . . . 4 1 . . . . 2 . . . . . . . . . . . 4 . . . Parts Field Recycled . | . . . . . . . . . . . . . . . . . . . . . . . . . . . . . . . . Retrieved Matter . | . . . . . . . . . . . . . . . . . . . . . . . . . . . . . . . . Parts Self-Destructed . | . . . . . . . . . . . . . . . . . . . . . . . . . . . . . . . . Prevented . | . . . . . . . . . . . . . . . . . . . . . . . . . . . . . . . . Kills | -11 -10 -10 -9 -9 -9 -8 -8 -7 -7 -6 -6 -6 -6 -6 -6 -5 -5 -5 -5 -4 -4 -3 -3 -3 -3 -2 -2 -2 -1 -1 -1 ------- Run | Scr Mat Min Mat Sto Gar Mat Gar Fac Gar Fac Ext Cet Arc Hub Gar Fac Gar Fac Gar Fac Gar Res Qua Sec Gar Res Gar Res Acc Gar Acc Combat Hostiles Destroyed 306 | . 9 8 2 14 30 2 12 1 7 42 4 3 . 6 11 6 10 3 11 8 11 5 12 13 25 8 15 20 . 8 . Melee 6 | . . . . . . . 1 . 1 . 1 . . . . . . 3 . . . . . . . . . . . . . Guns 110 | . 9 8 2 10 4 2 6 1 2 12 3 3 . 6 9 6 7 . . . . . . . 10 6 1 . . 3 . Cannons 147 | . . . . 2 9 . 3 . 1 25 . . . . . . . . 11 4 11 5 11 13 15 2 12 18 . 5 . AOE 37 | . . . . 1 17 . 2 . 3 5 . . . . 2 . 3 . . 4 . . . . . . . . . . . Classes Destroyed 21 | . 3 1 2 1 2 1 3 . 1 1 . . 1 . 2 . . . . . . 2 . 1 . . . . . . . Worker 18 | . . 1 . 1 . . . . . 9 . . . . . 1 . 3 . . . . . 1 . . . 2 . . . Builder 6 | . . . . . . . . . . 1 . . . . . . . . . . . . 2 . . 1 . 2 . . . Hauler 3 | . . . 1 . . . . . . 1 . . . . . . . . . . . . . . . . . 1 . . . Recycler 11 | . 1 . . 1 . 1 . . . 2 1 . . . . . . 1 . . . . . . . 1 . 3 . . . Operator 3 | . . . . . . . . . . . . . 1 1 . . . . . . . . . . . . . . . . 1 Watcher 6 | . . . 2 2 . . . . . 1 . . . . . . . . . . . . . 1 . . . . . . . Swarmer 54 | . 5 8 . 3 8 . . . . 7 1 . . . 4 . . . . 1 . . . 2 11 . 3 1 . . . Cutter 10 | . . . . . . . 2 . . . . . . . 3 . . . . . . . . . . . 5 . . . . Grunt 105 | . 4 . 2 6 13 1 4 1 4 25 1 1 . 4 1 2 5 1 3 6 2 1 . 3 6 1 4 2 . 2 . Brawler 11 | . . . . . . . 1 . 1 1 . . . . . . 4 . 1 . 1 . . . . 1 . 1 . . . Duelist 5 | . . . . . . . . . 1 1 . . . . . . . . . . . . . . 1 2 . . . . . Sentry 36 | . . . . 5 4 . 4 . . 3 2 . . 2 2 1 . . 3 . 1 . 1 3 1 . . 3 . 1 . Demolisher 1 | . . . . . . 1 . . . . . . . . . . . . . . . . . . . . . . . . . Specialist 3 | . . . . . . . . . . . . . . . 1 . . . . . . . 2 . . . . . . . . Hunter 15 | . . . . . 2 . . . . 1 . . . . . 1 . . 1 . 4 . . . 2 . 2 1 . 1 . Programmer 57 | . . . . . 3 . . . 1 4 . . . . 2 2 . 3 4 1 2 . 9 2 3 4 1 12 . 4 . Heavy 2 | . . . . . . . 1 . . . . . . . . . . . 1 . . . . . . . . . . . . Behemoth 6 | . . . . . . . . . . . . . . . 1 . 1 . . . 1 1 . 1 1 . . . . . . Cetus Guard 2 | . . . . . . . . . . . . 2 . . . . . . . . . . . . . . . . . . . Enhanced Grunt 1 | . . . . . . . . . . . . . . 1 . . . . . . . . . . . . . . . . . Striker 2 | . . . . . . . . . . . . . . . . . . . . . . 2 . . . . . . . . . Executioner 1 | . . . . . . . . . . . . . . . . . . . . . . 1 . . . . . . . . . Alpha 7 2 | . . . . . . . . . . . . . . . . . . . . . . . . 2 . . . . . . . Best Kill Streak 8 | . 3 4 2 4 8 2 3 1 4 6 2 2 1 3 3 5 7 3 3 6 3 2 6 3 5 4 5 6 . 2 1 Combat Bots Only 8 | . 3 3 1 4 8 2 3 1 4 6 2 2 . 3 3 5 7 2 3 6 3 2 5 3 5 4 5 3 . 2 . Max Kills in Single Turn 4 | . 1 2 1 1 4 2 2 1 1 4 1 1 1 2 2 1 2 2 1 4 1 1 1 1 1 1 1 1 . 1 1 Gunslinging 1 | . . 1 . . . . . . . . . . . . . . . . . . . . . . . . . . . . . Exploded 4 | . . . . 1 4 . 2 . 1 1 . . . . 2 . 2 . . 4 . . . . . . . . . . . Melee 1 | . . . . . . . 1 . 1 . 1 . . . . . . 1 . . . . . . . . . . . . . Uniques/NPCs Destroyed . | . . . . . . . . . . . . . . . . . . . . . . . . . . . . . . . . Combat | -11 -10 -10 -9 -9 -9 -8 -8 -7 -7 -6 -6 -6 -6 -6 -6 -5 -5 -5 -5 -4 -4 -3 -3 -3 -3 -2 -2 -2 -1 -1 -1 -------- Run | Scr Mat Min Mat Sto Gar Mat Gar Fac Gar Fac Ext Cet Arc Hub Gar Fac Gar Fac Gar Fac Gar Res Qua Sec Gar Res Gar Res Acc Gar Acc Damage Taken 39249 | . 356 203 305 541 1189 267 824 41 1054 3523 994 106 181 256 820 881 732 770 583 29 2888 389 1946 2961 2984 3423 3147 1476 . 6165 215 Core 6391 | . 86 63 61 69 177 101 84 . 173 493 88 . . . 91 40 95 206 6 . 144 . 277 437 507 875 601 109 . 1499 109 Absorbed by Shields 2244 | . . . . . . . . . . 132 207 60 . . . . 133 . 455 12 67 191 24 . 274 117 523 . . 49 . Reduced by Siege Mode 1119 | . . . . . . . 28 . . 285 2 6 10 5 26 56 3 . 32 . 96 . 49 100 8 . 146 49 . 218 . Redirected to Core 789 | . . . . . . . . . . . . . . . . . . . . . . . 86 312 263 128 . . . . . Redirected to Shielding 114 | . . . . . . . . . . . . . . . . . . . . . . . . . 60 . 54 . . . . Regen/Repaired (Parts) 2665 | . . . . . . 340 . . . 1588 . . . . . 175 . 562 . . . . . . . . . . . . . Core Remaining (%) 49 | 100 . 40 . . 23 . 66 . 75 . . . . . 20 . . . 65 . 87 . . . 6 . . 8 . . . Volleys Fired 2015 | . 39 24 28 46 103 39 42 26 82 195 51 15 7 17 128 39 66 44 104 57 66 33 78 128 113 69 144 133 3 94 2 Largest 2 | . 2 2 2 2 2 1 2 1 1 1 2 1 2 2 2 2 2 1 1 1 2 1 1 1 2 2 1 1 1 1 1 Hottest 279 | . 40 40 40 143 130 81 135 35 100 100 43 35 70 70 240 70 279 240 70 70 140 113 113 70 145 70 75 113 113 113 60 Shots Fired 2252 | . 60 39 55 76 130 39 46 26 85 196 54 17 11 25 160 40 78 45 99 57 86 33 78 129 149 75 137 126 3 96 2 Gun 883 | . 60 39 55 63 40 22 24 1 50 71 12 17 11 25 132 25 53 19 . . . . . . 72 43 26 . . 23 . Cannon 896 | . . . . 13 53 . 17 . 11 85 . . . . . . . 4 70 49 75 30 65 116 61 19 84 102 1 39 2 Launcher 58 | . . . . . 18 . 1 . 4 20 8 . . . 3 . 4 . . . . . . . . . . . . . . Special 415 | . . . . . 19 17 4 25 20 20 34 . . . 25 15 21 22 29 8 11 3 13 13 16 13 27 24 2 34 . Kinetic 1316 | . 60 39 55 6 40 8 24 1 50 71 12 17 11 25 126 25 29 5 70 49 75 26 29 116 125 62 97 21 . 40 2 Thermal 413 | . . . . 33 53 14 17 . 11 85 . . . . 6 . 24 18 . . . 4 36 . 8 . . 81 1 22 . Explosive 45 | . . . . . 18 . 1 . . 11 8 . . . 3 . 4 . . . . . . . . . . . . . . Electromagnetic 63 | . . . . 37 . . . . 4 9 . . . . . . . . . . . . . . . . 13 . . . . Robot Hit Streak 31 | . 9 7 10 6 31 9 17 9 30 26 27 5 8 15 17 19 9 9 21 6 14 9 18 15 10 12 13 13 15 16 . Robot Miss Streak 8 | . 4 4 2 3 3 2 2 5 8 4 1 1 1 2 2 1 2 1 2 1 2 3 2 5 3 3 3 4 . 2 . Penetration Max 2 | . . . . . . 1 2 . . 1 . 1 . 1 1 1 . . . . . . . . . 2 . . . . . Secondary Targets 4 | . 1 1 . 1 . . . . . . . . . . . . . . . . . . . . 1 . . . . . . Max Gunslinging Chain 1 | . 1 1 . 1 . . . . . . . . . . . . . . . . . . . . 1 . . . . . . Capacitor 42 | . . . . . . . . . . . . . . . . . . . . . . . . . . . . 42 . . . Shots Hit Robots 1554 | . 37 20 39 44 102 26 38 17 66 158 50 13 9 20 74 35 55 26 77 21 63 16 50 85 107 58 92 81 2 72 1 Core Hits 722 | . 17 10 14 21 74 4 20 1 24 116 21 7 6 13 42 13 34 12 26 11 19 8 18 34 46 23 32 39 . 16 1 Critical Kills 27 | . 1 . 1 1 . . . . 1 . 1 1 1 7 7 . . . . . . . 1 . 2 1 . 2 . . . Critical Parts Destroyed 23 | . 1 . . . . . . . . 1 . 1 . 2 7 3 2 . . . . . . . 1 4 1 . . . . Critical Strikes 124 | . 2 . 1 3 . . 1 . 2 1 2 2 1 9 14 3 3 . 4 3 10 4 4 13 12 6 13 7 . 4 . Burn 3 | . . . . 2 . . . . . . . . . . . . . . . . . . . . . . . . . 1 . Meltdown 4 | . . . . 1 . . . . . . . . . . . . . . . . . . 1 . . . . 2 . . . Destroy 44 | . 2 . 1 . . . . . 1 1 1 2 1 9 14 3 3 . . . . . . . 3 2 1 . . . . Blast 67 | . . . . . . . . . . . . . . . . . . . 4 3 10 4 3 13 9 1 12 5 . 3 . Smash 3 | . . . . . . . . . . . . . . . . . . . . . . . . . . 3 . . . . . Sever 3 | . . . . . . . 1 . 1 . 1 . . . . . . . . . . . . . . . . . . . . Melee Attacks 59 | . . . . . . . 10 4 17 . 10 . . . . . . 7 . . . . . . . 10 . . . . 1 Impact 11 | . . . . . . . . . . . 1 . . . . . . . . . . . . . . 10 . . . . . Slashing 47 | . . . . . . . 10 4 17 . 9 . . . . . . 7 . . . . . . . . . . . . . Piercing 1 | . . . . . . . . . . . . . . . . . . . . . . . . . . . . . . . 1 Sneak Attacks 7 | . . . . . . . 1 . . . 5 . . . . . . . . . . . . . . . . . . . 1 Combat Hostiles 2 | . . . . . . . 1 . . . 1 . . . . . . . . . . . . . . . . . . . . Follow-up Attacks . | . . . . . . . . . . . . . . . . . . . . . . . . . . . . . . . . Damage Inflicted 49395 | . 490 254 324 991 4321 334 1502 24 1572 7382 1295 518 249 816 1885 919 1796 837 2263 1543 2131 610 1892 2907 2826 1932 3072 3110 . 1507 93 Guns 14518 | . 490 254 324 737 484 334 461 24 778 1609 277 518 249 816 1577 919 1160 40 . . . . . . 1340 1240 565 . . 322 . Cannons 26946 | . . . . 123 2399 . 759 . 378 3957 . . . . . . . . 2263 805 2131 610 1892 2897 1486 444 2507 3110 . 1185 . Explosions 6166 | . . . . 131 1438 . 90 . 154 1816 316 . . . 308 . 636 539 . 738 . . . . . . . . . . . Melee 1715 | . . . . . . . 192 . 262 . 670 . . . . . . 250 . . . . . . . 248 . . . . 93 Ramming 50 | . . . . . . . . . . . 32 . . . . . . 8 . . . . . 10 . . . . . . . Kinetic 27874 | . 490 254 324 57 484 170 461 24 778 1609 277 518 249 816 1577 919 500 . 2263 805 2131 610 808 2897 2612 1684 2810 753 . 994 . Thermal 14693 | . . . . 548 2399 164 759 . 378 4839 . . . . . . 660 40 . 738 . . 1084 . 214 . . 2357 . 513 . Explosive 3961 | . . . . . 1438 . 90 . . 634 316 . . . 308 . 636 539 . . . . . . . . . . . . . Electromagnetic 1102 | . . . . 386 . . . . 154 300 . . . . . . . . . . . . . . . . 262 . . . . Impact 277 | . . . . . . . . . . . 29 . . . . . . . . . . . . . . 248 . . . . . Slashing 1345 | . . . . . . . 192 . 262 . 641 . . . . . . 250 . . . . . . . . . . . . . Piercing 93 | . . . . . . . . . . . . . . . . . . . . . . . . . . . . . . . 93 Highest Corruption 66 | . . . . . 2 . . . 11 9 14 14 14 14 17 5 20 22 26 1 4 . . 6 39 45 64 66 . 38 38 Average Corruption 21 | . . . . . 1 . . . 10 5 11 14 14 11 7 4 16 20 25 1 3 . . 5 28 31 60 64 . 30 28 Corruption Purged 10 | . . . . . . . . . . 3 . . . 7 . . . . . . . . . . . . . . . . . Corruption Blocked 18 | . . . . . . . . . . . . . . . . . . . . . . . 16 2 . . . . . . . Effects 871 | . . . . . 7 . . . 52 40 47 16 6 23 45 13 56 68 84 3 35 . . 34 80 25 91 98 . 39 9 Message Errors 179 | . . . . . 2 . . . 16 8 9 4 4 4 10 1 12 11 20 . 3 . . 7 20 7 18 16 . 5 2 Matter Fused 210 | . . . . . . . . . 11 13 9 4 1 3 9 7 20 21 16 1 9 . . 10 21 2 20 22 . 8 3 Heat Flow Errors 119 | . . . . . 2 . . . 8 8 8 3 . 4 7 1 9 7 16 . 4 . . 5 10 3 7 11 . 4 2 Energy Discharges 93 | . . . . . 2 . . . 4 4 8 2 . 3 4 2 4 9 5 1 7 . . 4 5 3 10 9 . 6 1 Parts Rejected 14 | . . . . . . . . . 2 . 1 . . . 1 . . 2 1 . . . . 2 1 . 1 1 . 2 . Data Loss (minor) 105 | . . . . . . . . . 6 4 9 . 1 6 5 2 5 9 10 1 6 . . 1 7 7 14 8 . 3 1 Data Loss (major) 36 | . . . . . . . . . 2 2 2 . . 2 2 . 3 3 2 . 4 . . 2 2 1 5 2 . 2 . Misfires 30 | . . . . . . . . . 3 1 . 2 . 1 1 . 1 1 3 . 1 . . 2 3 . 3 5 . 3 . Alerts 22 | . . . . . 1 . . . . . . 1 . . 2 . 2 2 3 . . . . . 4 . 2 3 . 2 . Misdirections 18 | . . . . . . . . . . . . . . . . . . 3 . . . . . . 1 1 1 9 . 3 . Weapon Failures 45 | . . . . . . . . . . . 1 . . . 4 . . . 8 . 1 . . 1 6 1 10 12 . 1 . Overload Shots 8 | . . . . . . . . . . . . . . . 1 . 6 1 . . . . . . . . . . . . . Overflow Damage 1309 | . . . . 1 106 . 23 . . 162 78 . . . . . . 67 39 97 43 21 116 82 127 221 30 51 . 45 . Projectiles 712 | . . . . . 19 . 23 . . 31 . . . . . . . . 39 . 43 21 116 82 127 85 30 51 . 45 . Explosions 364 | . . . . 1 87 . . . . 131 18 . . . . . . 30 . 97 . . . . . . . . . . . Melee 233 | . . . . . . . . . . . 60 . . . . . . 37 . . . . . . . 136 . . . . . Knockbacks 67 | . . . . . . . . . . . . . . . . . . . 4 2 10 3 14 10 10 . 9 1 . 4 . Impact . | . . . . . . . . . . . . . . . . . . . . . . . . . . . . . . . . Kinetic 59 | . . . . . . . . . . . . . . . . . . . 4 2 10 2 10 10 7 . 9 1 . 4 . Secondary 8 | . . . . . . . . . . . . . . . . . . . . . . 1 4 . 3 . . . . . . Self-Inflicted Damage 642 | . . . . 39 149 . . . . 215 118 . . . . . . 121 . . . . . . . . . . . . . Shots 24 | . . . . 1 7 . . . . 11 3 . . . . . . 2 . . . . . . . . . . . . . Rammed 4 | . . . . . . . . . . . 2 . . . . . . 1 . . . . . 1 . . . . . . . Targets Rammed 4 | . . . . . . . . . . . 2 . . . . . . 1 . . . . . 1 . . . . . . . Kicked . | . . . . . . . . . . . . . . . . . . . . . . . . . . . . . . . . Crushed . | . . . . . . . . . . . . . . . . . . . . . . . . . . . . . . . . Highest Temperature 453 | . 3 . 15 453 248 370 348 . 366 344 251 245 . 195 328 95 207 249 253 18 315 108 . 147 184 181 181 181 . 178 178 Average Temperature 93 | . 2 . 7 112 89 161 117 . 114 99 93 115 . 69 101 44 92 77 69 3 140 41 . 62 85 84 83 86 . 77 98 Received Heat Transfer 4372 | . 144 . 135 162 348 108 279 36 207 972 134 46 18 60 99 174 170 12 56 4 231 27 36 99 296 141 81 90 . 180 27 Effects 6 | . . . . 2 . . 3 . . . . . . . . . . . . . 1 . . . . . . . . . . Shutdowns 1 | . . . . 1 . . . . . . . . . . . . . . . . . . . . . . . . . . . Energy Bleed 2 | . . . . . . . 2 . . . . . . . . . . . . . . . . . . . . . . . . Short Circuit 2 | . . . . 1 . . 1 . . . . . . . . . . . . . . . . . . . . . . . . Damage (minor) 1 | . . . . . . . . . . . . . . . . . . . . . 1 . . . . . . . . . . Siege Activations 82 | . . . . . . . 1 . . 20 2 2 2 3 5 1 3 . 8 1 6 2 3 7 3 . 3 6 . 4 . Total Turns 1351 | . . . . . . . 23 . . 327 11 23 9 22 134 40 64 . 113 61 112 12 41 93 66 . 81 42 . 77 . Longest Duration 76 | . . . . . . . 23 . . 52 9 14 7 11 76 40 23 . 32 61 33 8 20 42 38 . 32 13 . 64 . Robots Corrupted 3 | . . . . 1 . . . . . . . . . . . . . . . . . . . . . . 2 . . . . Combat Hostiles 2 | . . . . . . . . . . . . . . . . . . . . . . . . . . . 2 . . . . Parts Fried 7 | . . . . 5 . . . . 1 1 . . . . . . . . . . . . . . . . . . . . . Impact Corruptions 6 | . . . . . . . . . . . . . . . . . . . . . . . . . 1 5 . . . . . Robots Melted 4 | . . . . 1 . . . . . . . . . . . . . . . . . . 1 . . . . 2 . . . Combat Hostiles 4 | . . . . 1 . . . . . . . . . . . . . . . . . . 1 . . . . 2 . . . Parts Melted 16 | . . . . . 2 . 3 . . 2 . . . . . . 1 . 2 1 . 1 1 . . . . 3 . . . Heat Transferred 15680 | . . . . 1038 2775 259 900 . 450 5225 . . . . . . 718 37 . 400 . . 777 . 400 . . 2072 . 629 . Parts Sabotaged . | . . . . . . . . . . . . . . . . . . . . . . . . . . . . . . . . Parts Stolen . | . . . . . . . . . . . . . . . . . . . . . . . . . . . . . . . . Parts Stripped . | . . . . . . . . . . . . . . . . . . . . . . . . . . . . . . . . Power Chain Reactions 4 | . . . . 2 . . . . 1 1 . . . . . . . . . . . . . . . . . . . . . Missiles Intercepted . | . . . . . . . . . . . . . . . . . . . . . . . . . . . . . . . . Alert | -11 -10 -10 -9 -9 -9 -8 -8 -7 -7 -6 -6 -6 -6 -6 -6 -5 -5 -5 -5 -4 -4 -3 -3 -3 -3 -2 -2 -2 -1 -1 -1 ------- Run | Scr Mat Min Mat Sto Gar Mat Gar Fac Gar Fac Ext Cet Arc Hub Gar Fac Gar Fac Gar Fac Gar Res Qua Sec Gar Res Gar Res Acc Gar Acc Peak Influence 1237 | . 309 249 306 513 1237 892 1050 586 472 777 398 487 347 375 804 595 657 462 513 631 477 313 128 491 927 503 286 232 50 98 184 Initial 602 | . . 54 11 128 . 602 532 550 30 239 240 188 170 121 104 422 286 315 51 251 168 267 15 14 368 497 6 160 48 40 35 Average 297 | . 134 169 190 350 604 666 859 328 231 403 245 334 292 152 428 443 503 185 269 339 234 99 33 238 665 326 69 99 48 43 77 Maximum Alert Level 4 | . 1 1 1 2 4 3 3 2 2 3 1 2 1 1 3 2 2 2 2 2 2 1 . 2 3 2 1 1 . . . Low Security (%) 43 | 100 71 43 48 12 25 . . 50 50 23 38 18 12 73 10 . . 48 44 8 44 83 100 32 . 32 85 89 100 100 100 Level 1 25 | . 28 56 51 44 7 . . 2 24 21 61 57 87 26 44 6 32 43 32 62 33 16 . 62 7 20 14 10 . . . Level 2 22 | . . . . 42 22 74 13 47 24 43 . 24 . . 26 93 67 7 23 29 21 . . 4 53 47 . . . . . Level 3 7 | . . . . . 32 25 86 . . 10 . . . . 18 . . . . . . . . . 38 . . . . . . Level 4 . | . . . . . 11 . . . . . . . . . . . . . . . . . . . . . . . . . . Level 5 . | . . . . . . . . . . . . . . . . . . . . . . . . . . . . . . . . High Security . | . . . . . . . . . . . . . . . . . . . . . . . . . . . . . . . . Max Security . | . . . . . . . . . . . . . . . . . . . . . . . . . . . . . . . . Squads Dispatched 74 | . . . 1 3 . 6 . 3 . 14 . . . 5 . 3 . 4 . 4 . 6 5 11 . 3 . 5 1 . . Investigation 12 | . . . . . . 1 . 2 . 3 . . . . . . . . . 1 . 5 . . . . . . . . . Extermination 22 | . . . . . . . . . . 5 . . . . . 1 . 2 . 1 . . 3 4 . 2 . 3 1 . . Reinforcement 31 | . . . 1 3 . 3 . . . 3 . . . 4 . 2 . 2 . 2 . 1 2 6 . . . 2 . . . Assault 1 | . . . . . . . . . . . . . . . . . . . . . . . . . . 1 . . . . . Garrison 8 | . . . . . . 2 . 1 . 3 . . . 1 . . . . . . . . . 1 . . . . . . . Intercept . | . . . . . . . . . . . . . . . . . . . . . . . . . . . . . . . . Searches Triggered . | . . . . . . . . . . . . . . . . . . . . . . . . . . . . . . . . Construction Impeded 5 | . . . 1 . . . . . . 1 . . . 1 . 2 . . . . . . . . . . . . . . . Haulers Reinforced 5 | . . . . . . . . . . 1 . . . 1 . . . . . . . . . 2 . . . 1 . . . Active Scanning Responses . | . . . . . . . . . . . . . . . . . . . . . . . . . . . . . . . . Cargo Convoy Interrupts 1 | . . . . . . . . . . . . . . . . . . 1 . . . . . . . . . . . . . Alert ID Control Effect 67 | . . . . . . . . . . . . . . . 3 12 8 . 8 4 2 1 4 4 10 . 2 5 . 4 . Stealth | -11 -10 -10 -9 -9 -9 -8 -8 -7 -7 -6 -6 -6 -6 -6 -6 -5 -5 -5 -5 -4 -4 -3 -3 -3 -3 -2 -2 -2 -1 -1 -1 --------- Run | Scr Mat Min Mat Sto Gar Mat Gar Fac Gar Fac Ext Cet Arc Hub Gar Fac Gar Fac Gar Fac Gar Res Qua Sec Gar Res Gar Res Acc Gar Acc Distress Signals 38 | . 3 . . 2 . 1 . . . 5 1 2 . 1 . 6 . . . . . 7 2 3 . 1 . 3 . . 1 Communications Jammed 435 | . . . . . . . . . . 21 . . . . . . . 64 . 24 . 56 1 175 7 35 . 40 . 12 . Distress Signals 431 | . . . . . . . . . . 21 . . . . . . . 64 . 24 . 56 1 171 7 35 . 40 . 12 . Times Spotted 776 | . 21 9 11 22 33 12 19 7 28 76 21 15 5 22 26 35 36 17 33 27 24 20 27 47 48 24 27 38 . 39 7 Peak Tracking Total 9 | . 6 3 3 8 4 7 4 2 6 5 4 5 1 4 4 9 6 6 9 3 8 5 6 6 5 9 5 4 1 7 3 Tactical Retreats 43 | . 2 1 1 1 2 1 3 . 2 3 . 1 . . 1 2 3 . 2 . . . . . 6 1 1 1 . 7 2 Traps | -11 -10 -10 -9 -9 -9 -8 -8 -7 -7 -6 -6 -6 -6 -6 -6 -5 -5 -5 -5 -4 -4 -3 -3 -3 -3 -2 -2 -2 -1 -1 -1 ------- Run | Scr Mat Min Mat Sto Gar Mat Gar Fac Gar Fac Ext Cet Arc Hub Gar Fac Gar Fac Gar Fac Gar Res Qua Sec Gar Res Gar Res Acc Gar Acc Traps Triggered 26 | . . . . . 1 . 1 . 1 3 . . . . 5 . 2 1 1 . 1 2 3 . 1 2 . 2 . . . Indirectly . | . . . . . . . . . . . . . . . . . . . . . . . . . . . . . . . . Trap Hack Attempts . | . . . . . . . . . . . . . . . . . . . . . . . . . . . . . . . . Triggered . | . . . . . . . . . . . . . . . . . . . . . . . . . . . . . . . . Disarmed . | . . . . . . . . . . . . . . . . . . . . . . . . . . . . . . . . Reprogrammed 9 | . . . . . . . . . . . . . . . . . . . . 9 . . . . . . . . . . . Reused 3 | . . . . . . . . . . . . . . . . . . . . 3 . . . . . . . . . . . Traps Extracted . | . . . . . . . . . . . . . . . . . . . . . . . . . . . . . . . . Installed . | . . . . . . . . . . . . . . . . . . . . . . . . . . . . . . . . Triggered 4 | . . . . 1 . . . . . . . . . . . . . . . 3 . . . . . . . . . . . Machines | -11 -10 -10 -9 -9 -9 -8 -8 -7 -7 -6 -6 -6 -6 -6 -6 -5 -5 -5 -5 -4 -4 -3 -3 -3 -3 -2 -2 -2 -1 -1 -1 ---------- Run | Scr Mat Min Mat Sto Gar Mat Gar Fac Gar Fac Ext Cet Arc Hub Gar Fac Gar Fac Gar Fac Gar Res Qua Sec Gar Res Gar Res Acc Gar Acc Machines Disabled 126 | . . . . 3 6 1 5 1 7 26 1 1 3 1 3 1 5 8 7 12 6 4 4 9 4 . 4 1 . 3 . Max in Single Turn 11 | . . . . 1 1 1 1 . 2 11 . 1 1 . 1 1 1 3 1 5 1 1 1 1 1 . 2 1 . 1 . Garrison Access 3 | . . . . . . . . . . . . . . . . . . . . . . 2 1 . . . . . . . . Garrison Relay 38 | . . . . . 4 . 3 . 6 . . . . . 3 . 4 . 5 . 5 . . . 4 . 1 . . 3 . Machines Sabotaged . | . . . . . . . . . . . . . . . . . . . . . . . . . . . . . . . . Garrisons Compromised . | . . . . . . . . . . . . . . . . . . . . . . . . . . . . . . . . Overloaded Fab Kills . | . . . . . . . . . . . . . . . . . . . . . . . . . . . . . . . . Hacking | -11 -10 -10 -9 -9 -9 -8 -8 -7 -7 -6 -6 -6 -6 -6 -6 -5 -5 -5 -5 -4 -4 -3 -3 -3 -3 -2 -2 -2 -1 -1 -1 --------- Run | Scr Mat Min Mat Sto Gar Mat Gar Fac Gar Fac Ext Cet Arc Hub Gar Fac Gar Fac Gar Fac Gar Res Qua Sec Gar Res Gar Res Acc Gar Acc Machines Accessed 122 | . 3 . 2 9 3 3 3 5 1 21 10 1 1 5 2 3 1 6 4 8 2 4 7 9 3 3 . . 2 1 . Terminals 83 | . 3 . 2 8 3 1 3 3 1 12 10 1 . 4 2 . 1 3 4 4 2 2 5 4 3 . . . 1 1 . Fabricators 6 | . . . . . . . . 1 . 2 . . . . . . . 1 . 1 . . . . . 1 . . . . . Repair Stations 10 | . . . . . . 1 . . . 4 . . . . . 1 . 1 . 1 . . . 2 . . . . . . . Recycling Units 1 | . . . . . . . . . . . . . . . . 1 . . . . . . . . . . . . . . . Scanalyzers 6 | . . . . . . . . . . 1 . . . . . . . . . 1 . . 1 2 . 1 . . . . . Garrison Access 15 | . . . . 1 . 1 . 1 . 2 . . . 1 . 1 . 1 . 1 . 2 1 1 . 1 . . 1 . . Total Hacks 348 | . 9 . 4 19 4 7 6 15 3 91 17 1 25 19 4 10 1 16 5 46 4 6 11 13 6 3 . . 2 1 . Successful 216 | . 2 . 2 15 3 5 3 8 1 66 11 1 25 10 1 5 1 10 3 22 1 5 6 5 1 2 . . 1 1 . Failed 131 | . 7 . 2 4 1 2 3 7 2 24 6 . . 9 3 5 . 6 2 24 3 1 5 8 5 1 . . 1 . . Catastrophic 17 | . 2 . . 1 . . 1 1 . 1 . . . 2 . . . 2 1 . . . 2 2 1 1 . . . . . Database Lockouts 1 | . . . . . . . . . . 1 . . . . . . . . . . . . . . . . . . . . . Manual 133 | . 6 . . 9 . 3 . 7 . 33 3 1 . 13 . 4 . 11 . 27 . 2 7 5 . 1 . . 1 . . Terminals 226 | . 9 . 4 16 4 2 6 10 3 62 17 1 . 18 4 . 1 9 5 28 4 4 7 4 6 . . . 1 1 . Fabricators 10 | . . . . . . . . 1 . 4 . . . . . . . 2 . 2 . . . . . 1 . . . . . Repair Stations 33 | . . . . . . 3 . . . 16 . . . . . 5 . 4 . 3 . . . 2 . . . . . . . Recycling Units 3 | . . . . . . . . . . . . . . . . 3 . . . . . . . . . . . . . . . Scanalyzers 16 | . . . . . . . . . . 4 . . . . . . . . . 6 . . 1 4 . 1 . . . . . Garrison Access 35 | . . . . 3 . 2 . 4 . 5 . . . 1 . 2 . 1 . 7 . 2 3 3 . 1 . . 1 . . Terminal Hacks 115 | . 2 . 2 10 3 . 3 2 1 31 9 1 25 3 1 . 1 1 3 9 1 2 2 1 1 . . . . 1 . Record 27 | . . . . . . . . . . 1 . . 25 . . . . . . . . . 1 . . . . . . . . Part Schematic 10 | . . . . . . . . 1 . 6 . . . . . . . . . 3 . . . . . . . . . . . Robot Schematic 1 | . . . . . . . . . . 1 . . . . . . . . . . . . . . . . . . . . . Robot Analysis 1 | . . . . . . . . . . 1 . . . . . . . . . . . . . . . . . . . . . Prototype ID Bank 3 | . . . 1 . . . . . . 1 . . . . . . . . . . . 1 . . . . . . . . . Open Door 18 | . . . . 4 . . . . . . 9 1 . . . . . . 1 . . . . 1 1 . . . . 1 . Branch Access Points 1 | . . . . . . . . . . 1 . . . . . . . . . . . . . . . . . . . . . Emergency Access Points 7 | . . . . . 1 . 1 . 1 . . . . . 1 . 1 . 1 . 1 . . . . . . . . . . Terminal Index 3 | . . . . . . . . 1 . 1 . . . . . . . . . 1 . . . . . . . . . . . Repair Station Index 1 | . . . . . . . . . . 1 . . . . . . . . . . . . . . . . . . . . . Garrison Index 1 | . . . . . . . . . . 1 . . . . . . . . . . . . . . . . . . . . . Unreport Threat 8 | . . . . 3 . . . . . 3 . . . 2 . . . . . . . . . . . . . . . . . Locate Traps 7 | . 1 . . 1 . . . . . 3 . . . . . . . 1 . 1 . . . . . . . . . . . Reprogram Traps 2 | . . . . . . . . . . . . . . . . . . . . 2 . . . . . . . . . . . Dispatch Records 1 | . . . . . . . . . . 1 . . . . . . . . . . . . . . . . . . . . . Transport Status 1 | . . . . . . . . . . 1 . . . . . . . . . . . . . . . . . . . . . Garrison Status 1 | . . . . . . . . . . 1 . . . . . . . . . . . . . . . . . . . . . Recall Investigation 1 | . . . . . . . . . . 1 . . . . . . . . . . . . . . . . . . . . . Recall Reinforcements 4 | . . . . 2 . . . . . . . . . . . . . . . 1 . . 1 . . . . . . . . Hauler Manifests 2 | . . . . . . . . . . 2 . . . . . . . . . . . . . . . . . . . . . Registered Components 1 | . . . . . . . . . . 1 . . . . . . . . . . . . . . . . . . . . . Zone Layout 9 | . 1 . 1 . . . . . . 4 . . . 1 . . . . . 1 . 1 . . . . . . . . . Garrison Registry 3 | . . . . . 1 . 1 . . . . . . . . . . . 1 . . . . . . . . . . . . Patrol Navigation 1 | . . . . . . . 1 . . . . . . . . . . . . . . . . . . . . . . . . Security Stations 1 | . . . . . 1 . . . . . . . . . . . . . . . . . . . . . . . . . . Fabricator Hacks 4 | . . . . . . . . . . 3 . . . . . . . . . . . . . . . 1 . . . . . Load Schematic 1 | . . . . . . . . . . 1 . . . . . . . . . . . . . . . . . . . . . Build 3 | . . . . . . . . . . 2 . . . . . . . . . . . . . . . 1 . . . . . Repair Station Hacks 19 | . . . . . . 2 . . . 11 . . . . . 2 . 4 . . . . . . . . . . . . . Scan Component 10 | . . . . . . 1 . . . 6 . . . . . 1 . 2 . . . . . . . . . . . . . Repair 9 | . . . . . . 1 . . . 5 . . . . . 1 . 2 . . . . . . . . . . . . . Recycling Unit Hacks . | . . . . . . . . . . . . . . . . . . . . . . . . . . . . . . . . Scanalyzer 10 | . . . . . . . . . . 4 . . . . . . . . . 2 . . 1 3 . . . . . . . Insert Component 6 | . . . . . . . . . . 1 . . . . . . . . . 1 . . 1 3 . . . . . . . Analyze 4 | . . . . . . . . . . 3 . . . . . . . . . 1 . . . . . . . . . . . Garrison Access Hacks 15 | . . . . 1 . 1 . 1 . 2 . . . 1 . 1 . 1 . 1 . 2 1 1 . 1 . . 1 . . Unlock Access 12 | . . . . 1 . 1 . 1 . 2 . . . 1 . 1 . 1 . 1 . . . 1 . 1 . . 1 . . Seal Access 3 | . . . . . . . . . . . . . . . . . . . . . . 2 1 . . . . . . . . Unauthorized Hacks 53 | . . . . 4 . 2 . 5 . 15 2 . . 6 . 2 . 4 . 10 . 1 2 . . . . . . . . Terminals 40 | . . . . 2 . 1 . 3 . 13 2 . . 6 . . . 4 . 6 . 1 2 . . . . . . . . Track 4 | . . . . . . . . . . 3 . . . 1 . . . . . . . . . . . . . . . . . Botnet 22 | . . . . 2 . . . 2 . 5 1 . . 3 . . . 3 . 4 . 1 1 . . . . . . . . Detonate 2 | . . . . . . . . . . 2 . . . . . . . . . . . . . . . . . . . . . Disrupt 4 | . . . . . . . . . . 2 . . . 1 . . . . . 1 . . . . . . . . . . . Operators 8 | . . . . . . 1 . 1 . 1 1 . . 1 . . . 1 . 1 . . 1 . . . . . . . . Fabricators 1 | . . . . . . . . . . . . . . . . . . . . 1 . . . . . . . . . . . Fabnet 1 | . . . . . . . . . . . . . . . . . . . . 1 . . . . . . . . . . . Repair Stations . | . . . . . . . . . . . . . . . . . . . . . . . . . . . . . . . . Recycling Units 2 | . . . . . . . . . . . . . . . . 2 . . . . . . . . . . . . . . . Monitor 1 | . . . . . . . . . . . . . . . . 1 . . . . . . . . . . . . . . . Reject 1 | . . . . . . . . . . . . . . . . 1 . . . . . . . . . . . . . . . Scanalyzers . | . . . . . . . . . . . . . . . . . . . . . . . . . . . . . . . . Garrison Access 10 | . . . . 2 . 1 . 2 . 2 . . . . . . . . . 3 . . . . . . . . . . . Broadcast 2 | . . . . 1 . . . . . . . . . . . . . . . 1 . . . . . . . . . . . Reprogram 6 | . . . . 1 . 1 . 1 . 2 . . . . . . . . . 1 . . . . . . . . . . . Intercept 1 | . . . . . . . . . . . . . . . . . . . . 1 . . . . . . . . . . . Watchers 1 | . . . . . . . . 1 . . . . . . . . . . . . . . . . . . . . . . . Data Cores Recovered . | . . . . . . . . . . . . . . . . . . . . . . . . . . . . . . . . Used . | . . . . . . . . . . . . . . . . . . . . . . . . . . . . . . . . Hacking Detections 94 | . 3 . 2 4 2 3 3 5 1 19 5 . . 5 2 3 . 6 2 5 2 2 6 7 3 2 . . 2 . . Full Trace Events 7 | . . . . . . . . 1 1 2 . . . . 1 . . . . . 1 . . . 1 . . . . . . Feedback Events 1 | . . . . . . . . . . 1 . . . . . . . . . . . . . . . . . . . . . Hackware Fried 1 | . . . . . . . . . . 1 . . . . . . . . . . . . . . . . . . . . . Feedback Blocked . | . . . . . . . . . . . . . . . . . . . . . . . . . . . . . . . . Robot Schematics Acquired 2 | . . . . . . . . . . 1 . . . . . . . . . . . . 1 . . . . . . . . Robots Built . | . . . . . . . . . . . . . . . . . . . . . . . . . . . . . . . . Authchips . | . . . . . . . . . . . . . . . . . . . . . . . . . . . . . . . . Time . | . . . . . . . . . . . . . . . . . . . . . . . . . . . . . . . . Total Robot Build Rating . | . . . . . . . . . . . . . . . . . . . . . . . . . . . . . . . . Part Schematics Acquired 14 | . . . . . . . . 1 . 7 . . . . . . . . . 3 . . 3 . . . . . . . . Parts Built 6 | . . . . . . . . . . 4 . . . . . . . . . . . . . . . 2 . . . . . Authchips . | . . . . . . . . . . . . . . . . . . . . . . . . . . . . . . . . Time 373 | . . . . . . . . . . 234 . . . . . . . . . . . . . . . 139 . . . . . Total Part Build Rating 46 | . . . . . . . . . . 28 . . . . . . . . . . . . . . . 18 . . . . . Parts Repaired 8 | . . . . . . 1 . . . 5 . . . . . 1 . 1 . . . . . . . . . . . . . Time 500 | . . . . . . 62 . . . 173 . . . . . 49 . 216 . . . . . . . . . . . . . Parts Recycled . | . . . . . . . . . . . . . . . . . . . . . . . . . . . . . . . . Recycled Matter . | . . . . . . . . . . . . . . . . . . . . . . . . . . . . . . . . Retrieved Matter . | . . . . . . . . . . . . . . . . . . . . . . . . . . . . . . . . Retrieved Components . | . . . . . . . . . . . . . . . . . . . . . . . . . . . . . . . . Parts Scanalyzed 2 | . . . . . . . . . . 1 . . . . . . . . . 1 . . . . . . . . . . . Part Schematics Acquired 1 | . . . . . . . . . . 1 . . . . . . . . . . . . . . . . . . . . . Parts Damaged . | . . . . . . . . . . . . . . . . . . . . . . . . . . . . . . . . Bothacking | -11 -10 -10 -9 -9 -9 -8 -8 -7 -7 -6 -6 -6 -6 -6 -6 -5 -5 -5 -5 -4 -4 -3 -3 -3 -3 -2 -2 -2 -1 -1 -1 ------------ Run | Scr Mat Min Mat Sto Gar Mat Gar Fac Gar Fac Ext Cet Arc Hub Gar Fac Gar Fac Gar Fac Gar Res Qua Sec Gar Res Gar Res Acc Gar Acc Used RIF Installer 11 | . . . . . 2 . 2 . 1 . . . . . 1 . 1 . 1 . 1 . . . 1 . 1 . . . . Coupler Efficiency 1 | . . . . . . . . . . . . . . . . . . . . . 1 . . . . . . . . . . Hotswap 1 | . . . . . . . . . . . . . . . . . . . . . . . . . . . 1 . . . . Threat Obfuscator 2 | . . . . . . . 1 . . . . . . . . . . . 1 . . . . . . . . . . . . Signal Jammer 1 | . . . . . . . 1 . . . . . . . . . . . . . . . . . . . . . . . . Robot Detection 1 | . . . . . . . . . . . . . . . . . 1 . . . . . . . . . . . . . . Patrol Navigation 1 | . . . . . 1 . . . . . . . . . . . . . . . . . . . . . . . . . . Alert ID Control 1 | . . . . . . . . . . . . . . . 1 . . . . . . . . . . . . . . . . Structural Interface 1 | . . . . . . . . . 1 . . . . . . . . . . . . . . . . . . . . . . Crosswire 1 | . . . . . . . . . . . . . . . . . . . . . . . . . 1 . . . . . . Robots Hacked 181 | . . . . . . 8 . 8 14 12 2 . . . 10 10 14 9 15 3 10 7 6 7 10 2 7 13 1 13 . Non-combat 43 | . . . . . . 6 . 5 . 6 . . . . . 3 . 7 1 3 . 1 . 1 1 2 . 6 1 . . Combat 138 | . . . . . . 2 . 3 14 6 2 . . . 10 7 14 2 14 . 10 6 6 6 9 . 7 7 . 13 . Robot Hacks Applied 195 | . . . . . . 9 . 13 14 14 2 . . . 10 10 14 15 16 6 10 2 5 5 9 4 8 14 1 14 . start_evac 1 | . . . . . . . . . . . . . . . . . . . . . . . . . . 1 . . . . . deconstruct_machine 1 | . . . . . . . . 1 . . . . . . . . . . . . . . . . . . . . . . . ignore_repairs 5 | . . . . . . 1 . . . . . . . . . . . 2 . . . . . . . . . 2 . . . map_walls 4 | . . . . . . 1 . . . . . . . . . . . . . . . . . 1 . . . 2 . . . ignore_parts 2 | . . . . . . . . . . . . . . . . . . 1 . . . . . . . . . 1 . . . purge_threat 12 | . . . . . . 1 . 4 . 1 . . . . . . . 2 1 2 . 1 . . . . . . . . . locate_traps 2 | . . . . . . . . . . . . . . . . . . 1 . . . . . . . . . 1 . . . reprogram_traps 1 | . . . . . . . . . . . . . . . . . . 1 . . . . . . . . . . . . . block_reporting 5 | . . . . . . . . 1 . 2 . . . . . . . 1 . . . . . . . . . 1 . . . clear_recycling 1 | . . . . . . . . . . . . . . . . . . 1 . . . . . . . . . . . . . mark_security 1 | . . . . . . . . . . . . . . . . . . . . 1 . . . . . . . . . . . scatter_targeting 1 | . . . . . . . . . . . . . . . . . . . . . . . 1 . . . . . . . . disrupt_area 1 | . . . . . . . . . . . . . . . . . . . . . . . . . . . . . . 1 . overload_power 4 | . . . . . . . . . 2 . . . . . . . . . . . 2 . . . . . . . . . . amplify_resonance 4 | . . . . . . . . . 1 . . . . . . . . . . . . . . . . . . . . 3 . disable_weapons 1 | . . . . . . . . . . . . . . . . . . . . . 1 . . . . . . . . . . overwrite_iff 61 | . . . . . . . . . 4 5 1 . . . 7 5 8 1 3 . 4 . 1 2 3 1 6 4 . 6 . formatsys_low 18 | . . . . . . 4 . 3 . 4 . . . . . 2 . 2 1 1 . 1 . . . . . . . . . formatsys_high 68 | . . . . . . 2 . 4 7 2 1 . . . 3 3 6 3 11 2 3 . 3 2 6 2 2 2 1 3 . formatsys_deep 2 | . . . . . . . . . . . . . . . . . . . . . . . . . . . . 1 . 1 . Relay Couplers Released 169 | . . . . . 16 . 13 4 21 . . . . . 19 . 16 . 17 . 23 4 . . 17 . 4 . . 15 . Machine Destruction 153 | . . . . . 16 . 13 . 21 . . . . . 15 . 16 . 17 . 19 . . . 17 . 4 . . 15 . Programmers 16 | . . . . . . . . 4 . . . . . . 4 . . . . . 4 4 . . . . . . . . . Attached 111 | . . . . . . 4 4 2 10 3 1 . . 1 11 1 11 2 12 2 13 . 1 2 9 1 6 . . 15 . Crosswired 8 | . . . . . . . . . . . . . . . . . . . . . . . . . . . 3 . . 5 . Fabnet Peak Effective % 3 | . . . . . . . . . . . . . . . . . . . . . . 3 3 3 3 1 1 1 . . . Autooverrided 10 | . . . . . . . . . . . . . . . . . . . . . . 6 1 2 1 . . . . . . Robots Rewired 38 | . . . . . 4 . 3 . . . 18 . . . 6 1 . . 2 . . . . . 2 . . . . 2 . Allies Hacked 8 | . . . . . . . . . . . . . . . . 1 . 2 . . . . . 2 . . . 1 . 2 . Hacks Repelled . | . . . . . . . . . . . . . . . . . . . . . . . . . . . . . . . . Allies | -11 -10 -10 -9 -9 -9 -8 -8 -7 -7 -6 -6 -6 -6 -6 -6 -5 -5 -5 -5 -4 -4 -3 -3 -3 -3 -2 -2 -2 -1 -1 -1 -------- Run | Scr Mat Min Mat Sto Gar Mat Gar Fac Gar Fac Ext Cet Arc Hub Gar Fac Gar Fac Gar Fac Gar Res Qua Sec Gar Res Gar Res Acc Gar Acc Total Allies 257 | . . 2 . 1 4 9 3 8 11 14 34 5 . . 16 11 14 6 17 5 7 7 5 6 14 1 7 9 1 14 26 Largest Group 24 | . . 2 1 1 4 12 6 9 8 7 23 23 5 4 9 9 3 3 7 5 5 3 3 5 4 1 3 4 1 7 24 Highest-Rated Group 755 | . . 41 31 100 100 215 113 143 127 185 755 755 535 384 290 287 107 87 407 342 342 154 343 547 220 65 185 265 45 430 343 Highest-Rated Ally 343 | . . 31 31 100 100 29 29 26 32 85 159 159 151 96 47 49 49 41 137 137 137 67 343 343 80 65 69 69 45 80 15 Total Orders 89 | . . . . . . 12 5 7 4 7 . 4 . 2 1 . 4 1 5 12 5 2 5 4 . 5 1 1 . 2 . STAY 42 | . . . . . . 2 2 5 2 1 . 4 . 1 1 . 3 1 3 3 4 1 3 2 . 1 1 . . 2 . ROAM 2 | . . . . . . . . . . . . . . . . . . . . . . . . . . 2 . . . . . FOLLOW 21 | . . . . . . 2 1 2 1 1 . . . 1 . . 1 . 2 3 1 1 2 2 . 1 . . . . . GUARD 4 | . . . . . . . . . . . . . . . . . . . . 4 . . . . . . . . . . . AID 10 | . . . . . . 5 2 . . 1 . . . . . . . . . 2 . . . . . . . . . . . DROP 3 | . . . . . . 1 . . 1 1 . . . . . . . . . . . . . . . . . . . . . PICKUP 1 | . . . . . . 1 . . . . . . . . . . . . . . . . . . . . . . . . . COLLECT 2 | . . . . . . 1 . . . 1 . . . . . . . . . . . . . . . . . . . . . EXPLORE 4 | . . . . . . . . . . 2 . . . . . . . . . . . . . . . 1 . 1 . . . Ally Attacks 1381 | . . . 29 8 11 75 32 21 45 109 118 142 23 37 33 63 54 2 99 57 28 21 24 127 65 5 18 36 . 49 50 Total Damage 42702 | . . . 375 81 222 1222 502 272 966 2141 2242 3555 949 1277 1452 2345 1069 41 2466 1906 1378 1136 1104 7597 3486 246 850 1091 . 1774 957 Kills 263 | . . . 6 3 4 12 4 1 7 17 17 21 4 13 12 19 8 . 12 14 3 8 5 41 15 . 2 6 . 5 4 Allies Corrupted 10 | . . . . . . . . . 2 . 1 . . 1 . . . . . . . . . . 2 1 . 2 . . 1 Allies Melted 3 | . . . . . . . . . . . . . . 1 . . 1 . . . . . . . . . . . . 1 . Intel | -11 -10 -10 -9 -9 -9 -8 -8 -7 -7 -6 -6 -6 -6 -6 -6 -5 -5 -5 -5 -4 -4 -3 -3 -3 -3 -2 -2 -2 -1 -1 -1 ------- Run | Scr Mat Min Mat Sto Gar Mat Gar Fac Gar Fac Ext Cet Arc Hub Gar Fac Gar Fac Gar Fac Gar Res Qua Sec Gar Res Gar Res Acc Gar Acc Robot Analysis Total 1 | . . . . . . . . . . 1 . . . . . . . . . . . . . . . . . . . . . Derelict Logs Recovered 1 | . . 1 . . . . . . . . . . . . . . . . . . . . . . . . . . . . . Drone Launches 11 | . . . . . . . . . . 2 . . . . . . . . . . . . . . . 7 . 2 . . . Drone Recoveries 5 | . . . . . . . . . . . . . . . . . . . . . . . . . . 5 . . . . . Exploration | -11 -10 -10 -9 -9 -9 -8 -8 -7 -7 -6 -6 -6 -6 -6 -6 -5 -5 -5 -5 -4 -4 -3 -3 -3 -3 -2 -2 -2 -1 -1 -1 ------------- Run | Scr Mat Min Mat Sto Gar Mat Gar Fac Gar Fac Ext Cet Arc Hub Gar Fac Gar Fac Gar Fac Gar Res Qua Sec Gar Res Gar Res Acc Gar Acc Turns Passed 35069 | 34 482 551 314 812 1242 426 1145 495 1588 3243 1136 379 157 647 1488 759 1412 1326 1567 1059 1537 2475 1749 1873 1617 845 1536 1463 290 1047 375 Spaces Moved 19090 | 30 396 427 178 518 599 198 608 268 836 1451 547 178 51 307 665 397 739 655 772 556 795 1427 898 967 819 503 858 784 174 774 715 Core 707 | 1 . . . . . . . . . . . . . . . . . . . . 1 . . . . 15 7 . . 392 291 Treads 13900 | . . . . . 508 198 608 268 836 1451 547 178 51 307 665 397 739 655 772 556 794 1427 898 967 265 21 159 311 174 148 . Legs 2063 | . . . . . . . . . . . . . . . . . . . . . . . . . 554 302 657 473 . 77 . Wheels 1639 | 29 396 427 178 518 91 . . . . . . . . . . . . . . . . . . . . . . . . . . Hover 321 | . . . . . . . . . . . . . . . . . . . . . . . . . . 137 33 . . 147 4 Flight 452 | . . . . . . . . . . . . . . . . . . . . . . . . . . 22 . . . 10 420 Fastest Speed 39 | 50 85 105 105 115 115 160 160 160 160 160 160 160 160 160 160 160 160 160 160 160 160 160 160 145 100 40 60 116 157 40 39 Average Speed 145 | 88 90 108 107 118 156 160 160 160 160 164 173 179 232 181 163 160 160 162 160 160 161 161 160 153 146 109 123 134 157 82 43 Slowest Speed 1300 | 90 120 120 120 150 165 160 160 160 160 240 240 240 240 240 240 240 160 240 160 160 1300 240 160 225 305 350 750 225 225 350 70 Overloaded Moves . | . . . . . . . . . . . . . . . . . . . . . . . . . . . . . . . . Propulsion Burnouts . | . . . . . . . . . . . . . . . . . . . . . . . . . . . . . . . . Robots Hopped 2 | . . . . . . . . . . . . . . . . . . . . . . . . . . . . 1 . . 1 Cave-ins Triggered 2 | . . . . . . . . . . . 1 . . . . . . . . . . . 1 . . . . . . . . Spacefolds 3 | . . . . . . . . . . . . . . . . . . . . . . . . . . 2 1 . . . . Exploration Rate (%) 51 | 4 63 96 15 81 70 17 50 8 78 56 64 66 74 39 63 15 85 24 93 18 89 40 97 58 92 12 58 20 9 75 25 Regions Visited 31 Branch Regions 8 Pre-discovered Areas . | . . . . . . . . . . . . . . . . . . . . . . . . . . . . . . . . Known Exits Taken 11 | . . . . 1 . 1 . 1 . 1 . . . 1 . 1 . 1 . 1 . . . 1 . 1 . . 1 . . Unknown Exits Taken 10 | 1 1 1 1 . . . . . . . 1 1 1 . . . . . . . . 1 1 . . . . 1 . . . Scrap Searched 1 | . . 1 . . . . . . . . . . . . . . . . . . . . . . . . . . . . . Spaces Dug 345 | . . . . . . 6 . 3 1 99 80 . . . 38 . 1 16 . 27 . 8 14 14 4 7 13 10 1 1 2 Terrain Destroyed 892 | . . . . 4 19 9 5 4 11 253 137 . 1 6 63 35 28 75 4 68 11 11 22 25 13 11 30 35 1 9 2 Melee 3 | . . . . . . . . 3 . . . . . . . . . . . . . . . . . . . . . . . Projectile 271 | . . . . . . 9 3 1 7 10 . . 1 6 6 7 3 16 4 28 11 11 22 25 13 11 30 35 1 9 2 AOE 613 | . . . . 4 19 . 2 . 4 243 137 . . . 52 28 25 59 . 40 . . . . . . . . . . . Terrain Rammed . | . . . . . . . . . . . . . . . . . . . . . . . . . . . . . . . . Walls Destroyed . | . . . . . . . . . . . . . . . . . . . . . . . . . . . . . . . . Machines Disabled . | . . . . . . . . . . . . . . . . . . . . . . . . . . . . . . . . Actions | -11 -10 -10 -9 -9 -9 -8 -8 -7 -7 -6 -6 -6 -6 -6 -6 -5 -5 -5 -5 -4 -4 -3 -3 -3 -3 -2 -2 -2 -1 -1 -1 --------- Run | Scr Mat Min Mat Sto Gar Mat Gar Fac Gar Fac Ext Cet Arc Hub Gar Fac Gar Fac Gar Fac Gar Res Qua Sec Gar Res Gar Res Acc Gar Acc Total 24317 | 34 458 476 254 642 762 280 710 313 987 2077 682 231 80 374 912 484 909 874 1020 674 968 1562 1143 1243 1100 712 1174 1121 190 1107 764 Wait 1715 | . 10 19 37 33 5 28 27 3 . 335 25 11 19 36 55 23 50 104 70 41 49 35 120 77 93 69 85 103 . 140 13 Move 19052 | 29 395 426 177 517 598 197 607 267 835 1450 545 177 50 307 664 396 738 655 771 555 794 1426 896 966 818 499 856 781 174 773 713 Hop 2 | . . . . . . . . . . . . . . . . . . . . . . . . . . . . 1 . . 1 Pick Up 278 | . 8 4 5 11 14 5 8 3 12 21 7 7 . 1 14 5 15 6 22 2 11 10 6 13 14 11 15 12 4 11 1 Fast Attach 376 | 5 2 1 4 11 4 . 4 1 9 22 5 5 . 2 10 5 7 19 5 7 18 28 13 14 21 17 38 38 3 37 21 Attach 201 | . . 2 1 6 3 4 1 3 11 20 7 . 1 3 9 5 9 6 4 2 5 1 6 18 8 16 16 9 1 22 2 Detach 80 | . . . . 2 1 . . . 4 6 3 3 1 4 5 2 . 6 . . . 2 2 11 3 6 1 4 . 12 2 Swap 147 | . 3 . 1 2 8 3 6 4 7 11 4 . 1 1 11 6 10 6 19 2 6 4 6 1 13 5 . 5 . 2 . Drop 349 | . 1 . 1 14 18 4 5 1 10 16 4 13 1 3 16 3 14 19 20 8 19 23 15 14 17 10 18 35 5 14 8 Fire 2015 | . 39 24 28 46 103 39 42 26 82 195 51 15 7 17 128 39 66 44 104 57 66 33 78 128 113 69 144 133 3 94 2 Melee 59 | . . . . . . . 10 4 17 . 10 . . . . . . 7 . . . . . . . 10 . . . . 1 Ram 1 | . . . . . . . . . . . . . . . . . . . . . . . . . . . 1 . . . . Kick . | . . . . . . . . . . . . . . . . . . . . . . . . . . . . . . . . Crush 4 | . . . . . . . . . . . 2 . . . . . . 1 . . . . . 1 . . . . . . . Escape Stasis 12 | . . . . . 8 . . . . . 1 . . . . . . . 2 . . . 1 . . . . . . . . Rewire 26 | . . . . . . . . 1 . 1 18 . . . . . . 1 3 . . . . . . . . . . 2 . Trap . | . . . . . . . . . . . . . . . . . . . . . . . . . . . . . . . . Miscellaneous . | . . . . . . . . . . . . . . . . . . . . . . . . . . . . . . . . Route ------- -11/Scrapyard -10/Materials (discovered 2 exits: *Mat / [*Min]) -10/Mines (discovered 2 exits: *Mat x2) -9/Materials (discovered 2 exits: *Sto x2) -9/Storage (discovered 2 exits: *Mat / Gar) -9/Garrison (discovered 3 exits: *Mat x3) -8/Materials -8/Garrison (discovered 3 exits: *Fac x3) -7/Factory -7/Garrison (discovered 3 exits: *Fac x3) -6/Factory (discovered 7 exits: Fac / *Low x2 / *Ext x2 / Gar / Gar) -6/Extension (discovered 2 exits: *Fac / *Cet) -6/Cetus (discovered 2 exits: *Fac / *Arc) -6/Archives (discovered 2 exits: *Hub x2) -6/Hub_04(d) (discovered 2 exits: *Fac / Gar) -6/Garrison -5/Factory (discovered 2 exits: *Fac / Gar) -5/Garrison (discovered 4 exits: *Fac x4) -5/Factory (discovered 2 exits: [*Upp] / Gar) -5/Garrison (discovered 3 exits: *Fac x3) -4/Factory -4/Garrison (discovered 3 exits: *Res x3) -3/Research (discovered 2 exits: *Res / *Qua) -3/Quarantine (discovered 2 exits: *Res / *Sec) -3/Section 7 (discovered 2 exits: *Res / Gar) -3/Garrison (discovered 3 exits: *Res x3) -2/Research -2/Garrison -2/Research -1/Access -1/Garrison (discovered 2 exits: [*Acc x2]) -1/Access History --------- Turn | Location | Event 18 | -11/Scrapyard | Discovered new exit (range 16) 35 | -11/Scrapyard | Entered Materials 181 | -10/Materials | Discovered new exit (range 8) 309 | -10/Materials | Build established: Mutant 393 | -10/Materials | Discovered new exit (range 6) 517 | -10/Materials | Entered Mines 660 | -10/Mines | Deemed a non-threat by the Exiles lab entrance 700 | -10/Mines | Core integrity fell below 50% 731 | -10/Mines | Lost 3 parts (1p2w) 780 | -10/Mines | Learned Materials stockpile data 828 | -10/Mines | Assembled infested the area 954 | -10/Mines | Discovered new exit (range 11) 981 | -10/Mines | Discovered new exit (range 15) 1068 | -10/Mines | Entered Materials 1068 | -9/Materials | Accompanied by 1 ally 1068 | -9/Materials | Evolved 2 slots: Utility x2 1073 | -9/Materials | Led the pair of lost Derelicts to an unsafe place 1133 | -9/Materials | Discovered new exit (range 10) 1311 | -9/Materials | Discovered new exit (range 6) 1382 | -9/Materials | Entered Storage 1382 | -9/Storage | Accompanied by 1 ally 1815 | -9/Storage | Lost 3 parts (1p1u1w) 1840 | -9/Storage | Identified exit to Garrison 1958 | -9/Storage | Discovered new exit (range 16) 2068 | -9/Storage | Met 01-MTF 2194 | -9/Storage | Entered Garrison 2194 | -9/Garrison | Accompanied by 1 ally (01-MTF) 2199 | -9/Garrison | 01-MTF left 2252 | -9/Garrison | Triggered checkpoint 2303 | -9/Garrison | Core integrity fell below 50% 2338 | -9/Garrison | Discovered new exit (range 44) 2338 | -9/Garrison | Discovered new exit (range 78) 2338 | -9/Garrison | Discovered new exit (range 73) 2378 | -9/Garrison | Triggered checkpoint 2490 | -9/Garrison | Garrison Relay disabled 2510 | -9/Garrison | Garrison Relay disabled 2597 | -9/Garrison | Triggered checkpoint 2602 | -9/Garrison | Triggered checkpoint 2629 | -9/Garrison | Destroyed 8 combat bots 2690 | -9/Garrison | Triggered checkpoint 2702 | -9/Garrison | Garrison Relay disabled 2784 | -9/Garrison | Installed Relay Interface Framework 2890 | -9/Garrison | Triggered checkpoint 2960 | -9/Garrison | Triggered checkpoint 2994 | -9/Garrison | Expanded RIF knowledge: Patrol Navigation 3057 | -9/Garrison | Build established: Bothacker-Mutant 3074 | -9/Garrison | Triggered checkpoint 3082 | -9/Garrison | Learned Materials security intel 3102 | -9/Garrison | Triggered checkpoint 3151 | -9/Garrison | Garrison Relay disabled 3286 | -9/Garrison | Triggered checkpoint 3436 | -9/Garrison | Entered Materials 3436 | -8/Materials | Accompanied by 4 allies 3436 | -8/Materials | Evolved 2 slots: Utility x2 3549 | -8/Materials | Repaired Imp. Heavy Treads 3717 | -8/Materials | Garrison activated, responded to threat 3762 | -8/Materials | Identified exit to Garrison 3862 | -8/Materials | Entered Garrison 3862 | -8/Garrison | Accompanied by 6 allies 3926 | -8/Garrison | Triggered checkpoint 3958 | -8/Garrison | Triggered checkpoint 3960 | -8/Garrison | Triggered checkpoint 4018 | -8/Garrison | Garrison Relay disabled 4047 | -8/Garrison | Expanded RIF knowledge: Signal Jamming 4110 | -8/Garrison | Triggered checkpoint 4112 | -8/Garrison | Heavy support dispatched to Factory 4207 | -8/Garrison | Discovered new exit (range 55) 4207 | -8/Garrison | Discovered new exit (range 45) 4207 | -8/Garrison | Discovered new exit (range 19) 4388 | -8/Garrison | Triggered checkpoint 4424 | -8/Garrison | Garrison Relay disabled 4602 | -8/Garrison | Triggered checkpoint 4661 | -8/Garrison | Garrison Relay disabled 4719 | -8/Garrison | Expanded RIF knowledge: Threat Obfuscation 5007 | -8/Garrison | Entered Factory 5007 | -7/Factory | Accompanied by 3 allies 5007 | -7/Factory | Evolved 2 slots: Utility x2 5015 | -7/Factory | Build established: Botlord-Mutant 5279 | -7/Factory | Identified exit to Garrison 5452 | -7/Factory | Garrison activated, responded to threat 5502 | -7/Factory | Entered Garrison 5502 | -7/Garrison | Accompanied by 8 allies 5584 | -7/Garrison | Triggered checkpoint 5641 | -7/Garrison | Garrison Relay disabled 5686 | -7/Garrison | System corruption reached 10% 5716 | -7/Garrison | Lost 4 parts (1p2u1w) 6006 | -7/Garrison | Triggered checkpoint 6014 | -7/Garrison | Triggered checkpoint 6020 | -7/Garrison | Triggered checkpoint 6172 | -7/Garrison | Triggered checkpoint 6194 | -7/Garrison | Garrison Relay disabled 6237 | -7/Garrison | Discovered new exit (range 10) 6350 | -7/Garrison | Garrison Relay disabled 6353 | -7/Garrison | Garrison Relay disabled 6353 | -7/Garrison | Garrison Relay disabled 6611 | -7/Garrison | Discovered new exit (range 15) 6669 | -7/Garrison | Expanded RIF knowledge: Structural Interface 6740 | -7/Garrison | Triggered checkpoint 6823 | -7/Garrison | Garrison Relay disabled 6874 | -7/Garrison | Triggered checkpoint 6988 | -7/Garrison | Discovered new exit (range 13) 7090 | -7/Garrison | Entered Factory 7090 | -6/Factory | Accompanied by 3 allies 7090 | -6/Factory | Evolved 2 slots: Utility x2 7193 | -6/Factory | Repaired Railgun 7284 | -6/Factory | Identified exit to Garrison 7348 | -6/Factory | Hacking Suite fried by hacking feedback 7419 | -6/Factory | Garrison activated, responded to threat 7539 | -6/Factory | Fabricated Neutrino Core? 7669 | -6/Factory | Repaired Ion Burst Cannon? 8071 | -6/Factory | Identified exit to Lower Caves 8071 | -6/Factory | Identified exit to Extension 8234 | -6/Factory | Central database locked down 8677 | -6/Factory | Spotted B-75 Beast 8685 | -6/Factory | Assimilated Beast 5a with formatsys_high 8780 | -6/Factory | Lost 4 parts (1n1u2w) 8823 | -6/Factory | Repaired Imp. Heavy Treads 9028 | -6/Factory | Build established: Hacker-Mutant 9130 | -6/Factory | Fabricated Particle Reactor? 9378 | -6/Factory | Core integrity fell below 50% 9709 | -6/Factory | Lost 6 parts (5u1w) 9859 | -6/Factory | Identified exit to Garrison 9942 | -6/Factory | Discovered new exit (range 9) 10082 | -6/Factory | Repaired Imp. Heavy Treads 10124 | -6/Factory | Repaired Gui. EMP Blaster 10333 | -6/Factory | Entered Extension 10490 | -6/Extension | Rescued a captive Derelict 10491 | -6/Extension | Rescued a captive Derelict 10667 | -6/Extension | Rescued a captive Derelict 10702 | -6/Extension | Rescued a captive Derelict 10703 | -6/Extension | Rescued a captive Derelict 10745 | -6/Extension | Rescued a captive Derelict 10791 | -6/Extension | Build established: Bothacker-Mutant 10822 | -6/Extension | Crushed by falling debris 10823 | -6/Extension | System corruption reached 10% 10853 | -6/Extension | Lost 5 parts (4u1w) 10936 | -6/Extension | Rescued a captive Derelict 10937 | -6/Extension | Rescued a captive Derelict 11018 | -6/Extension | Rescued a captive Derelict 11019 | -6/Extension | Rescued a captive Derelict 11062 | -6/Extension | Rescued a captive Derelict 11066 | -6/Extension | Rescued a captive Derelict 11085 | -6/Extension | Rescued a captive Derelict 11245 | -6/Extension | Rescued A7 11409 | -6/Extension | Discovered new exit (range 10) 11411 | -6/Extension | Discovered new exit (range 6) 11469 | -6/Extension | Entered Cetus 11469 | -6/Cetus | Accompanied by 23 allies (A7) 11474 | -6/Cetus | Acquired a Cetus Manufacturing Module code from A7 11489 | -6/Cetus | Spotted Cetus Guard 11489 | -6/Cetus | Spotted Cetus Guard 11490 | -6/Cetus | Spotted Cetus Guard 11492 | -6/Cetus | Spotted Cetus Guard 11499 | -6/Cetus | Allies destroyed Cetus Guard 11504 | -6/Cetus | Allies destroyed Cetus Guard 11505 | -6/Cetus | Build established: Commander-Mutant 11505 | -6/Cetus | Allies destroyed Cetus Guard 11512 | -6/Cetus | Allies destroyed Cetus Guard 11606 | -6/Cetus | Started Cetus Manufacturing Module 11618 | -6/Cetus | Escorted A7 to Cetus Mainframe 11631 | -6/Cetus | Manufactured an Enhanced Grunt 11639 | -6/Cetus | Discovered new exit (range 15) 11656 | -6/Cetus | Manufactured an Enhanced Grunt 11671 | -6/Cetus | Spotted Cetus Guard 11671 | -6/Cetus | Spotted Cetus Guard 11675 | -6/Cetus | Spotted Cetus Guard 11675 | -6/Cetus | Spotted Cetus Guard 11681 | -6/Cetus | Manufactured an Enhanced Grunt 11689 | -6/Cetus | Allies destroyed Cetus Guard 11690 | -6/Cetus | Destroyed Cetus Guard 11700 | -6/Cetus | Allies destroyed Cetus Guard 11702 | -6/Cetus | Destroyed Cetus Guard 11706 | -6/Cetus | Manufactured an Enhanced Grunt 11729 | -6/Cetus | Discovered new exit (range 16) 11731 | -6/Cetus | Manufactured an Enhanced Grunt 11740 | -6/Cetus | Met Revision 17 11848 | -6/Cetus | Entered Archives 11848 | -6/Archives | Accompanied by 5 allies (A7) 11853 | -6/Archives | Received a hacking code to weaken MAIN.C 11929 | -6/Archives | Unable to access archive contents 11934 | -6/Archives | Discovered new exit (range 16) 11953 | -6/Archives | Unable to access archive contents 11963 | -6/Archives | Discovered new exit (range 14) 11984 | -6/Archives | Build established: Bothacker-Mutant 12005 | -6/Archives | Entered Hub_04(d) 12005 | -6/Hub_04(d) | Accompanied by 4 allies 12422 | -6/Hub_04(d) | Discovered new exit (range 11) 12512 | -6/Hub_04(d) | Garrison activated, responded to threat 12652 | -6/Hub_04(d) | Identified exit to Garrison 12652 | -6/Hub_04(d) | Entered Garrison 12788 | -6/Garrison | Triggered checkpoint 12852 | -6/Garrison | Garrison Relay disabled 12915 | -6/Garrison | Spotted B-75 Beast 13155 | -6/Garrison | Build established: Botlord-Mutant 13235 | -6/Garrison | Destroyed B-75 Beast 13268 | -6/Garrison | Triggered checkpoint 13427 | -6/Garrison | Spotted B-75 Beast 13588 | -6/Garrison | Triggered checkpoint 13679 | -6/Garrison | Expanded RIF knowledge: Alert ID Control 13694 | -6/Garrison | Triggered checkpoint 13709 | -6/Garrison | Garrison Relay disabled 13858 | -6/Garrison | Triggered checkpoint 13870 | -6/Garrison | Triggered checkpoint 13984 | -6/Garrison | Discovered new exit (range 14) 14043 | -6/Garrison | Garrison Relay disabled 14140 | -6/Garrison | Entered Factory 14140 | -5/Factory | Accompanied by 8 allies 14140 | -5/Factory | Evolved 2 slots: Utility x2 14502 | -5/Factory | Lost 3 parts (1p2w) 14748 | -5/Factory | Repaired Adv. KE Penetrator 14827 | -5/Factory | Discovered new exit (range 15) 14839 | -5/Factory | Identified exit to Garrison 14899 | -5/Factory | Entered Garrison 14899 | -5/Garrison | Accompanied by 1 ally 14932 | -5/Garrison | Expanded RIF knowledge: Robot Detection 14984 | -5/Garrison | Triggered checkpoint 14985 | -5/Garrison | Garrison Relay disabled 15060 | -5/Garrison | Garrison Relay disabled 15136 | -5/Garrison | Spotted B-75 Beast 15136 | -5/Garrison | Triggered checkpoint 15191 | -5/Garrison | System corruption reached 10% 15229 | -5/Garrison | Lost 5 parts (5u) 15351 | -5/Garrison | Destroyed B-75 Beast 15387 | -5/Garrison | Triggered checkpoint 15438 | -5/Garrison | Destroyed 7 combat bots 15497 | -5/Garrison | Discovered new exit (range 10) 15560 | -5/Garrison | Garrison Relay disabled 15676 | -5/Garrison | Triggered checkpoint 15701 | -5/Garrison | Garrison Relay disabled 15744 | -5/Garrison | Discovered new exit (range 9) 15780 | -5/Garrison | Triggered checkpoint 15817 | -5/Garrison | Discovered new exit (range 3) 15982 | -5/Garrison | Triggered checkpoint 15989 | -5/Garrison | Discovered new exit (range 14) 16088 | -5/Garrison | Triggered checkpoint 16100 | -5/Garrison | Triggered checkpoint 16311 | -5/Garrison | Entered Factory 16311 | -5/Factory | Accompanied by 3 allies 16549 | -5/Factory | Repaired Centrium Medium Armor Plating? 16724 | -5/Factory | Discovered new exit (range 16) 17391 | -5/Factory | Cargo convoy interrupted 17529 | -5/Factory | Found Prototype Protection 17529 | -5/Factory | Identified Active Cooling Armor 17541 | -5/Factory | Found Prototype Device 17541 | -5/Factory | Identified Exp. Force Field 17557 | -5/Factory | Found Prototype Processor 17557 | -5/Factory | Identified Spectral Analyzer 17561 | -5/Factory | Found Prototype Processor 17561 | -5/Factory | Identified Exp. Core Analyzer 17567 | -5/Factory | Found Exp. Force Field 17637 | -5/Factory | Identified exit to Garrison 17637 | -5/Factory | Entered Garrison 17792 | -5/Garrison | Triggered checkpoint 17909 | -5/Garrison | Heavy support dispatched to Factory 17948 | -5/Garrison | Triggered checkpoint 17986 | -5/Garrison | Garrison Relay disabled 18037 | -5/Garrison | Heavy support dispatched to Factory 18085 | -5/Garrison | Spotted B-75 Beast 18116 | -5/Garrison | Allies destroyed B-75 Beast 18224 | -5/Garrison | Triggered checkpoint 18322 | -5/Garrison | Discovered new exit (range 12) 18330 | -5/Garrison | Garrison Relay disabled 18436 | -5/Garrison | Triggered checkpoint 18490 | -5/Garrison | Garrison Relay disabled 18512 | -5/Garrison | Heavy support dispatched to Factory 18606 | -5/Garrison | Triggered checkpoint 18710 | -5/Garrison | Discovered new exit (range 10) 18745 | -5/Garrison | Expanded RIF knowledge: Threat Obfuscation 18790 | -5/Garrison | Discovered new exit (range 49) 18790 | -5/Garrison | Discovered new exit (range 23) 18790 | -5/Garrison | Discovered new exit (range 53) 18796 | -5/Garrison | Triggered checkpoint 18822 | -5/Garrison | Garrison Relay disabled 18982 | -5/Garrison | Triggered checkpoint 19008 | -5/Garrison | Garrison Relay disabled 19042 | -5/Garrison | Spotted B-75 Beast 19048 | -5/Garrison | Assimilated Beast 6a with formatsys_high 19116 | -5/Garrison | Found Unknown Hackware 19116 | -5/Garrison | Identified Relay Coupler [Proto] 19119 | -5/Garrison | Found Relay Coupler [Proto] 19122 | -5/Garrison | Found Relay Coupler [Proto] 19125 | -5/Garrison | Found Relay Coupler [Proto] 19204 | -5/Garrison | Entered Factory 19204 | -4/Factory | Accompanied by 5 allies 19204 | -4/Factory | Evolved 2 slots: Utility x2 20003 | -4/Factory | Spotted B-86 Titan 20014 | -4/Factory | Identified exit to Garrison 20263 | -4/Factory | Entered Garrison 20263 | -4/Garrison | Accompanied by 5 allies 20322 | -4/Garrison | Triggered checkpoint 20330 | -4/Garrison | Triggered checkpoint 20331 | -4/Garrison | Spotted B-86 Titan 20415 | -4/Garrison | Destroyed B-86 Titan 20447 | -4/Garrison | Lost 6 parts (5u1w) 20603 | -4/Garrison | Triggered checkpoint 20774 | -4/Garrison | Discovered new exit (range 16) 20784 | -4/Garrison | Triggered checkpoint 20813 | -4/Garrison | Garrison Relay disabled 20946 | -4/Garrison | Garrison Relay disabled 20998 | -4/Garrison | Discovered new exit (range 11) 21193 | -4/Garrison | Discovered new exit (range 5) 21310 | -4/Garrison | Triggered checkpoint 21355 | -4/Garrison | Garrison Relay disabled 21466 | -4/Garrison | Garrison Relay disabled 21490 | -4/Garrison | Triggered checkpoint 21560 | -4/Garrison | Garrison Relay disabled 21577 | -4/Garrison | Expanded RIF knowledge: Coupler Efficiency 21800 | -4/Garrison | Entered Research 21800 | -3/Research | Accompanied by 2 allies 21800 | -3/Research | Evolved 2 slots: Utility x2 22000 | -3/Research | Revision forces began assault on 0b10 22050 | -3/Research | Met up with Revision 17++ 22096 | -3/Research | Discovered new exit (range 24) 22114 | -3/Research | Local machine network offline 22500 | -3/Research | Research terminal network offline 22710 | -3/Research | Spotted B-86 Titan 22737 | -3/Research | Destroyed B-86 Titan 22957 | -3/Research | Spotted Executioner 22959 | -3/Research | Spotted Striker 22962 | -3/Research | Destroyed Executioner 22966 | -3/Research | Destroyed Striker 23013 | -3/Research | Spotted Striker 23017 | -3/Research | Allies destroyed Striker 23315 | -3/Research | Spotted Striker 23324 | -3/Research | Destroyed Striker 23798 | -3/Research | Spotted Executioner 23800 | -3/Research | Spotted Striker 23922 | -3/Research | Spotted Striker 23932 | -3/Research | Spotted Striker 23938 | -3/Research | Spotted Striker 24013 | -3/Research | Identified exit to Research 24263 | -3/Research | Discovered new exit (range 7) 24275 | -3/Research | Entered Quarantine 24275 | -3/Quarantine | Accompanied by 2 allies 24334 | -3/Quarantine | Found Alien Artifact 24434 | -3/Quarantine | Identified Subatomic Replicator 24776 | -3/Quarantine | Local machine network offline 24807 | -3/Quarantine | Crushed by falling debris 24996 | -3/Quarantine | Found Alien Artifact 25045 | -3/Quarantine | Met incapacitated Sigix Warrior 25045 | -3/Quarantine | Lockdown squad dispatched 25138 | -3/Quarantine | Found Alien Artifact 25150 | -3/Quarantine | Spotted Lightning 25261 | -3/Quarantine | Found Alien Artifact 25651 | -3/Quarantine | Lost 4 parts (1p2u1w) 25747 | -3/Quarantine | Discovered exit to Research (range 4) 25789 | -3/Quarantine | Identified Phase Armor 25895 | -3/Quarantine | Spotted Fortress 25903 | -3/Quarantine | Assimilated Fortress with formatsys_high 26013 | -3/Quarantine | Discovered new exit (range 7) 26024 | -3/Quarantine | Entered Section 7 26024 | -3/Section 7 | Accompanied by 1 ally 26097 | -3/Section 7 | Found Alien Artifact 26496 | -3/Section 7 | Found Alien Artifact 26527 | -3/Section 7 | Identified Spacefold Activator 26528 | -3/Section 7 | Identified Phase Redirector 26529 | -3/Section 7 | Found Alien Artifact 26529 | -3/Section 7 | Identified Integrated Dissipator 26529 | -3/Section 7 | Installed Integrated Dissipator, increased core heat dissipation (+20) 26546 | -3/Section 7 | Discovered exit to Research (range 8) 26841 | -3/Section 7 | Spotted Alpha 7 26870 | -3/Section 7 | Spotted Alpha 7 26918 | -3/Section 7 | Destroyed Alpha 7 26930 | -3/Section 7 | Destroyed Alpha 7 26981 | -3/Section 7 | Identified Core Reset Matrix 27001 | -3/Section 7 | Spotted B-99 Colossus 27128 | -3/Section 7 | Destroyed B-99 Colossus 27188 | -3/Section 7 | Found Alien Artifact 27188 | -3/Section 7 | Identified Core Expander 27188 | -3/Section 7 | Installed Core Expander, added new Propulsion slot 27238 | -3/Section 7 | Found Alien Artifact 27238 | -3/Section 7 | Identified LRC Storage 27238 | -3/Section 7 | Installed LRC Storage, increased inventory capacity (+2) 27293 | -3/Section 7 | Found Alien Artifact 27636 | -3/Section 7 | Spotted S7 Guard 27652 | -3/Section 7 | Found Alien Artifact 27664 | -3/Section 7 | Assimilated S7 Guard with formatsys_high 27707 | -3/Section 7 | Identified Integrated Thermoelectric Network 27707 | -3/Section 7 | Installed Integrated Thermoelectric Network, gained heat-energy exchange potential 27708 | -3/Section 7 | Identified Integrity Redistributor (x2) 27800 | -3/Section 7 | Garrison activated, responded to threat 27882 | -3/Section 7 | Identified exit to Garrison 27889 | -3/Section 7 | Spotted B-86 Titan 27890 | -3/Section 7 | Core integrity fell below 50% 27897 | -3/Section 7 | Entered Garrison 27926 | -3/Garrison | Found embedded Infiltrators 28016 | -3/Garrison | Garrison Relay disabled 28078 | -3/Garrison | Triggered checkpoint 28144 | -3/Garrison | System corruption reached 10% 28393 | -3/Garrison | Core integrity fell below 20% 28493 | -3/Garrison | Spotted B-86 Titan 28532 | -3/Garrison | System corruption reached 30% 28634 | -3/Garrison | Triggered checkpoint 28651 | -3/Garrison | Destroyed B-86 Titan 28784 | -3/Garrison | Discovered exit to Research (range 22) 28866 | -3/Garrison | Triggered checkpoint 28885 | -3/Garrison | Garrison Relay disabled 29036 | -3/Garrison | Triggered checkpoint 29085 | -3/Garrison | Discovered exit to Research (range 10) 29116 | -3/Garrison | Triggered checkpoint 29214 | -3/Garrison | Triggered checkpoint 29282 | -3/Garrison | Triggered checkpoint 29322 | -3/Garrison | Lost 3 parts (1p1n1u) 29325 | -3/Garrison | Garrison Relay disabled 29464 | -3/Garrison | Discovered exit to Research (range 11) 29491 | -3/Garrison | Expanded RIF knowledge: Crosswire 29514 | -3/Garrison | Entered Research 29514 | -2/Research | Accompanied by 1 ally 29514 | -2/Research | Evolved 2 slots: Utility x2 29575 | -2/Research | Spotted B-90 Cyclops 29656 | -2/Research | Spotted B-90 Cyclops 29764 | -2/Research | First assault squad dispatched 29837 | -2/Research | Fabricated Quantum Reactor (x2) 29869 | -2/Research | P-80 Master assimilated allied Warden 8b 29879 | -2/Research | P-80 Master assimilated allied Warden 8b 29926 | -2/Research | System corruption reached 10% 29992 | -2/Research | Lost 13 parts (1p2n8u2w) 30066 | -2/Research | System corruption reached 30% 30139 | -2/Research | Lost 13 parts (1p3n7u2w) 30352 | -2/Research | Core integrity fell below 50% 30359 | -2/Research | Identified exit to Garrison 30359 | -2/Research | Entered Garrison 30377 | -2/Garrison | Lost 4 parts (1p2n1u) 30446 | -2/Garrison | Triggered checkpoint 30497 | -2/Garrison | Garrison Relay disabled 30605 | -2/Garrison | Spotted B-90 Cyclops 30696 | -2/Garrison | P-80 Master assimilated allied H-88 Terminator 30718 | -2/Garrison | Core integrity fell below 20% 30734 | -2/Garrison | Lost 5 parts (3u2w) 30783 | -2/Garrison | Lost 3 parts (1p1n1u) 30923 | -2/Garrison | Used Integrity Redistributor, redistributed integrity to core (+120) 31053 | -2/Garrison | Triggered checkpoint 31056 | -2/Garrison | Spotted B-90 Cyclops 31410 | -2/Garrison | Build established: Scavenger-Mutant 31457 | -2/Garrison | Lost 3 parts (3u) 31619 | -2/Garrison | Found Unknown Device 31619 | -2/Garrison | Identified Quantum Capacitor 31644 | -2/Garrison | Triggered checkpoint 31784 | -2/Garrison | Discovered new exit (range 12) 31843 | -2/Garrison | Expanded RIF knowledge: Hotswap 31895 | -2/Garrison | Entered Research 31979 | -2/Research | Spotted B-90 Cyclops 32425 | -2/Research | Used Integrity Redistributor, redistributed integrity to core (+135) 32522 | -2/Research | Assimilated ARC 9a with formatsys_deep 32658 | -2/Research | Build established: Botlord-Mutant 32762 | -2/Research | Found Prototype Launcher 32762 | -2/Research | Identified Com. Tesla Bomb Launcher 33046 | -2/Research | Lost 3 parts (3u) 33297 | -2/Research | Discovered new exit (range 17) 33358 | -2/Research | Entered Access 33358 | -1/Access | Evolved 2 slots: Utility x2 33543 | -1/Access | Found Antimissile System 33648 | -1/Access | Identified exit to Garrison 33648 | -1/Access | Entered Garrison 33648 | -1/Garrison | Accompanied by 1 ally 33698 | -1/Garrison | Triggered checkpoint 33716 | -1/Garrison | Triggered checkpoint 33735 | -1/Garrison | Garrison Relay disabled 33875 | -1/Garrison | Found embedded Infiltrators 33968 | -1/Garrison | Assimilated ARC 10a with formatsys_deep 33971 | -1/Garrison | Triggered checkpoint 33972 | -1/Garrison | Triggered checkpoint 34005 | -1/Garrison | Spotted B-99 Colossus 34020 | -1/Garrison | P-80 Master assimilated allied Director 10a 34035 | -1/Garrison | System corruption reached 10% 34104 | -1/Garrison | Lost 17 parts (2p5n8u2w) 34184 | -1/Garrison | Core integrity fell below 50% 34197 | -1/Garrison | P-80 Master assimilated allied G-73 Enforcer 34215 | -1/Garrison | System corruption reached 30% 34219 | -1/Garrison | Lost 9 parts (2n4u3w) 34257 | -1/Garrison | Discovered new exit (range 16) 34275 | -1/Garrison | Lost 6 parts (1n4u1w) 34278 | -1/Garrison | Core integrity fell below 20% 34358 | -1/Garrison | Garrison Relay disabled 34486 | -1/Garrison | Garrison Relay disabled 34502 | -1/Garrison | Lost 4 parts (2n1u1w) 34534 | -1/Garrison | Discovered new exit (range 8) 34610 | -1/Garrison | Triggered checkpoint 34695 | -1/Garrison | Entered Access 34916 | -1/Access | Used Core Reset Matrix 34920 | -1/Access | Emitted hypermatrix ping 34925 | -1/Access | Assembled emerged from beneath the floor 34931 | -1/Access | Assembled emerged from beneath the floor 34978 | -1/Access | Assembled emerged from beneath the floor 35011 | -1/Access | Assembled emerged from beneath the floor 35070 | -1/Access | Destroyed by Y-72 Warden with Railgun Last Messages --------------- 35034_ Acquired 54 matter. 35037_ ALERT: Security rotation in progress. 35042_ Acquired Unknown Device. 35042_ Identified Imp. System Restoration Module. 35043_ Dropped Imp. System Restoration Module. 35049_ >> Machine Analyzer network decryption results: 35049_ Repair Station x2 35056_ Sneak attack on O-24 Administrator. 35056_ O-24 Administrator destroyed. 35059_ Acquired 24 matter. 35060_ Acquired Hacking Suite. 35061_ Acquired Unknown Hackware. 35061_ Identified System Shield. 35063_ Acquired Unknown Device. 35063_ Identified System Restoration Module. 35065_ Dropped System Restoration Module. 35068_ W-44 Eye sends out distress signal. 35069_ Slug penetrates W-44 Eye. 35070_ ALERT: Infestation gathering in Complex 0b10, dispatching Demolisher response squad. Map ----- +----------------------------------------------------+ | ?????????????????????????????????????????????????? | | ##########???????????????????????????????????????? | | #???????????????????????????????????????? | | !! #???????????????????????????????????????? | | !! #???????????????????????????????????????? | | ! #???????????????????????????????????????? | | #???????????????????????????????????????? | | #???????????????????????????????????????? | | #?????????????????????##########????????? | | #?????????????????????# #????????? | | ####/########################### #????????? | | # #????????? | | # #????????? | | #==" "" #????????? | | # "R"" #????????? | | ####################### / !""" #????????? | | #?????????????????????# # #????????? | | #?????????????????????# # #????????? | | #???????????????????### ##########????????? | | #????????????########Y# #?????????????????? | | #????????????# # #?????????????????? | | ############## # #?????????????????? | | # # # +?????????????????? | | [ # # # #?????????????????? | | = # # + +?????????????????? | | # # @# #?????????????????? | | % # # // # #?????????????????? | | [% # !! # / # #?????????????????? | | %% " *! # # #?????????????????? | | # *! ########## ????????????????? | | # #????????# ???H???????????? | | # #????????# ??????????????? | | # #????????# ?????????????? | | ##### #????????#### ####????????????? | | ????##############???????????? #???????????????? | | ?????????????????????????????? #???????????????? | | ?????????????????????????????? #???????????????? | | ?????????????????????????????? #???????????????? | | ??????????????????????"??????? #???????????????? | | ??????????????????????"??????? #???????????????? | | ??????????????????????"??????? #???????????????? | | #####?????????????????T???????? #???????????????? | | #?????????????????"???????? #???????????????? | | #?????????????????"??????????????????????????? | | #?????????????????"??????????????????????????? | | " #????????????????????????????????????????????? | | "" #????????????????????????????????????????????? | | " #????????????????????????????????????????????? | | #????????????????????????????????????????????? | | ] #????????????????????????????????????????????? | +----------------------------------------------------+ Best States ------------- Heat Dissipation 126 Coolant Potential 145 Energy Generation 31 Energy Capacity 1450 Matter Stores 600 Matter Capacity 600 Sight Range 24 Terrain Scan Range 14 Terrain Scan Density 85 Cloak Strength 3 Power Amplification 30 Additional Mass Support 16 EM Shielding 3 Corruption Containment 12 Corruption Block 20 Armor Coverage 1800 Resistance: TH 30 Resistance: EM 25 Core Shielding 30 Weapon Shielding 66 Point Defense Rating 240 Weapon Cycling 20 Melee Speed Boost 20 Phase Shifting 15 Evasion (%) 70 Targeting Accuracy 16 Melee Accuracy 6 Launcher Accuracy 40 Target Analysis 12 Core Analysis 11 Armor Integrity Analysis 40 Recoil Reduction 3 Particle Charging 25 Kinecelleration 40 Offensive Hacking 44 Defensive Hacking 26 Relay Coupler Types 7 Relay Coupler Value 364 Authchip Count 4 Item Schematics ----------------- None Robot Schematics ------------------ None Fabricated ------------ Neutrino Core | x2 | -6/Factory | Preloaded Particle Reactor | x2 | -6/Factory Quantum Reactor | x2 | -2/Research | Preloaded Alien Tech Used ----------------- Phase Armor Spacefold Activator Phase Redirector Integrated Dissipator Core Expander LRC Storage Integrated Thermoelectric Network Subatomic Replicator Integrity Redistributor Core Reset Matrix Achievements -------------- None Challenges ------------ None Game ------ Seed CatalystMetafiberField Manual? 1 Play Time 10:16:14 Cumulative 318.8 hours Start 2022.08.07 @ 00:28:16 End 2022.08.10 @ 21:07:22 Sessions 11 Manual Loads 0 Difficulty Rogue Special Mode None Game No. 147 Rogue 143 Adventurer 0 Explorer 4 Win Type - Total 16 Types 4/0/2/4/1/2/3/0/0 Lore% 77 Gallery% 84 Achievement% 75 Wizard Run 0 Options --------- ASCII 0 Keyboard 0 Movement Mouse Keybinds 0 Fullscreen 1 Font 18/SmallcapsGlow Map View 76x50 Tactical HUD 1 Map Filters NONE Filters NONE Steam 1 RUN: 53451cd9-269e-4e75-94ae-c84d18ea584b